Workbook

Sheet DadosVento
A1: ANO | B1: MÊS | C1: DIA | D1: Vento | E1: Aleatório | G1: Média | H1: =AVERAGE(D2:D5277) -> 1.195233338
A2: 2007 | B2: 1 | C2: 11 | D2: 0.944 | E2: 1.289543158e-05
A3: 2013 | B3: 11 | C3: 28 | D3: 1.265 | E3: 3.881518954e-05
A4: 2012 | B4: 10 | C4: 19 | D4: 0.822 | E4: 0.0003398631035
A5: 2011 | B5: 7 | C5: 7 | D5: 0.778 | E5: 0.0003808384199
A6: 2008 | B6: 7 | C6: 22 | D6: 1.506 | E6: 0.0005019459069
A7: 2002 | B7: 10 | C7: 24 | D7: 1.045 | E7: 0.0005205468496
A8: 2012 | B8: 9 | C8: 30 | D8: 0.976 | E8: 0.0007477747669
A9: 2011 | B9: 10 | C9: 13 | D9: 0.8 | E9: 0.0008546824386
A10: 2007 | B10: 4 | C10: 8 | D10: 0.95 | E10: 0.0009222514767
A11: 2013 | B11: 2 | C11: 28 | D11: 1.121 | E11: 0.001059006509
A12: 2005 | B12: 3 | C12: 30 | D12: 0.681 | E12: 0.001756977187
A13: 2006 | B13: 8 | C13: 14 | D13: 1.524 | E13: 0.001883870997
A14: 2002 | B14: 4 | C14: 9 | D14: 1.069 | E14: 0.002366083817
A15: 2003 | B15: 4 | C15: 24 | D15: 0.609 | E15: 0.002402110695
A16: 2006 | B16: 5 | C16: 31 | D16: 0.985 | E16: 0.002567230584
A17: 2007 | B17: 1 | C17: 21 | D17: 0.914 | E17: 0.002606937047
A18: 2008 | B18: 6 | C18: 9 | D18: 1.37 | E18: 0.002718776536
A19: 2003 | B19: 5 | C19: 25 | D19: 1.21 | E19: 0.002747448351
A20: 2003 | B20: 7 | C20: 25 | D20: 1.033 | E20: 0.003006923121
A21: 2006 | B21: 5 | C21: 20 | D21: 0.755 | E21: 0.003256714637
A22: 2013 | B22: 1 | C22: 16 | D22: 0.85 | E22: 0.003483164876
A23: 2002 | B23: 2 | C23: 6 | D23: 0.82 | E23: 0.003652011749
A24: 2004 | B24: 10 | C24: 5 | D24: 1.318 | E24: 0.003914115022
A25: 2008 | B25: 9 | C25: 11 | D25: 1.304 | E25: 0.003914972169
A26: 2011 | B26: 5 | C26: 24 | D26: 0.392 | E26: 0.004351507462
A27: 2001 | B27: 8 | C27: 4 | D27: 0.473 | E27: 0.004471777381
A28: 2002 | B28: 8 | C28: 24 | D28: 1.432 | E28: 0.004643204132
A29: 2005 | B29: 5 | C29: 29 | D29: 0.987 | E29: 0.004755773919
A30: 2008 | B30: 7 | C30: 7 | D30: 1.083 | E30: 0.004916340664
A31: 2000 | B31: 4 | C31: 28 | D31: 1.15 | E31: 0.004937273807
A32: 2011 | B32: 1 | C32: 5 | D32: 0.98 | E32: 0.004970013684
A33: 2001 | B33: 4 | C33: 5 | D33: 0.435 | E33: 0.005013452202
A34: 2002 | B34: 12 | C34: 8 | D34: 1.499 | E34: 0.00539858458
A35: 2003 | B35: 7 | C35: 29 | D35: 0.521 | E35: 0.005413854283
A36: 2010 | B36: 1 | C36: 15 | D36: 1.86 | E36: 0.005689098846
A37: 2004 | B37: 12 | C37: 21 | D37: 2.074 | E37: 0.005725141186
A38: 2013 | B38: 1 | C38: 15 | D38: 0.516 | E38: 0.005919154225
A39: 2001 | B39: 7 | C39: 4 | D39: 0.762 | E39: 0.006133546048
A40: 2010 | B40: 3 | C40: 15 | D40: 0.861 | E40: 0.006296129997
A41: 2005 | B41: 10 | C41: 18 | D41: 1.8 | E41: 0.006384047562
A42: 2003 | B42: 3 | C42: 20 | D42: 0.847 | E42: 0.00640945056
A43: 2001 | B43: 10 | C43: 15 | D43: 1.054 | E43: 0.00658242764
A44: 2001 | B44: 9 | C44: 13 | D44: 0.811 | E44: 0.006840617274
A45: 2008 | B45: 7 | C45: 18 | D45: 1.253 | E45: 0.007089931236
A46: 2008 | B46: 6 | C46: 2 | D46: 0.874 | E46: 0.007379932984
A47: 2007 | B47: 8 | C47: 25 | D47: 1.253 | E47: 0.007432322403
A48: 2014 | B48: 2 | C48: 28 | D48: 0.907 | E48: 0.007533007302
A49: 2000 | B49: 9 | C49: 3 | D49: 1.721 | E49: 0.007619948967
A50: 2009 | B50: 5 | C50: 24 | D50: 0.877 | E50: 0.007746807051
A51: 2013 | B51: 2 | C51: 14 | D51: 0.604 | E51: 0.007935546964
A52: 2011 | B52: 12 | C52: 9 | D52: 0.94 | E52: 0.008061510064
A53: 2001 | B53: 8 | C53: 13 | D53: 0.621 | E53: 0.008153115746
A54: 2011 | B54: 11 | C54: 20 | D54: 1.36 | E54: 0.008199293367
A55: 2006 | B55: 8 | C55: 20 | D55: 1.177 | E55: 0.008255340326
A56: 2010 | B56: 3 | C56: 17 | D56: 1.798 | E56: 0.008291651915
A57: 2013 | B57: 2 | C57: 13 | D57: 0.756 | E57: 0.008396456942
A58: 2001 | B58: 9 | C58: 7 | D58: 2.253 | E58: 0.00840727721
A59: 2001 | B59: 12 | C59: 11 | D59: 0.493 | E59: 0.008525246697
A60: 2002 | B60: 1 | C60: 17 | D60: 2.415 | E60: 0.008969824074
A61: 2003 | B61: 12 | C61: 25 | D61: 2.548 | E61: 0.009151499987
A62: 2007 | B62: 6 | C62: 14 | D62: 1.114 | E62: 0.00917586574
A63: 2008 | B63: 12 | C63: 16 | D63: 1.331 | E63: 0.009451236664
A64: 2013 | B64: 7 | C64: 5 | D64: 0.402 | E64: 0.009577682273
A65: 2010 | B65: 7 | C65: 26 | D65: 1.278 | E65: 0.009664195532
A66: 2004 | B66: 9 | C66: 12 | D66: 3.971 | E66: 0.009788347915
A67: 2011 | B67: 4 | C67: 5 | D67: 0.696 | E67: 0.009807227962
A68: 2011 | B68: 3 | C68: 17 | D68: 0.667 | E68: 0.009827161709
A69: 2001 | B69: 5 | C69: 24 | D69: 1.818 | E69: 0.01009931405
A70: 2000 | B70: 4 | C70: 17 | D70: 0.48442 | E70: 0.01074758446
A71: 2010 | B71: 11 | C71: 29 | D71: 1.528 | E71: 0.01172325552
A72: 2006 | B72: 10 | C72: 4 | D72: 1.064 | E72: 0.01241246633
A73: 2006 | B73: 2 | C73: 13 | D73: 0.916 | E73: 0.01252624595
A74: 2010 | B74: 4 | C74: 18 | D74: 0.584 | E74: 0.01263149061
A75: 2008 | B75: 2 | C75: 18 | D75: 1.008 | E75: 0.01283989834
A76: 2010 | B76: 4 | C76: 9 | D76: 2.071 | E76: 0.01321020889
A77: 2000 | B77: 4 | C77: 15 | D77: 0.86397 | E77: 0.01330528042
A78: 2010 | B78: 2 | C78: 20 | D78: 0.481 | E78: 0.01366555715
A79: 2008 | B79: 7 | C79: 8 | D79: 1.223 | E79: 0.01374965474
A80: 2012 | B80: 6 | C80: 3 | D80: 0.964 | E80: 0.01387684083
A81: 2009 | B81: 4 | C81: 3 | D81: 1.582 | E81: 0.0140701023
A82: 2004 | B82: 8 | C82: 20 | D82: 2.381 | E82: 0.01427893723
A83: 2002 | B83: 7 | C83: 18 | D83: 2.215 | E83: 0.01434115172
A84: 2012 | B84: 6 | C84: 5 | D84: 0.619 | E84: 0.01463847971
A85: 2004 | B85: 11 | C85: 11 | D85: 1.571 | E85: 0.01474070256
A86: 2012 | B86: 1 | C86: 1 | D86: 0.895 | E86: 0.01483804225
A87: 2008 | B87: 8 | C87: 11 | D87: 0.703 | E87: 0.01533549278
A88: 2008 | B88: 6 | C88: 6 | D88: 0.886 | E88: 0.01534334368
A89: 2007 | B89: 2 | C89: 4 | D89: 1.415 | E89: 0.01548520671
A90: 2008 | B90: 9 | C90: 16 | D90: 2.364 | E90: 0.01550926225
A91: 2012 | B91: 6 | C91: 29 | D91: 0.683 | E91: 0.01592261155
A92: 2002 | B92: 8 | C92: 6 | D92: 1.114 | E92: 0.01619527036
A93: 2008 | B93: 11 | C93: 2 | D93: 1.51 | E93: 0.01620149198
A94: 2000 | B94: 5 | C94: 27 | D94: 0.871 | E94: 0.01661007679
A95: 2010 | B95: 8 | C95: 19 | D95: 0.872 | E95: 0.01697609286
A96: 2011 | B96: 7 | C96: 24 | D96: 1.418 | E96: 0.01702431191
A97: 2007 | B97: 5 | C97: 29 | D97: 1.201 | E97: 0.01712703055
A98: 2001 | B98: 1 | C98: 16 | D98: 0.899 | E98: 0.01718984592
A99: 2010 | B99: 7 | C99: 4 | D99: 0.244 | E99: 0.01723816979
A100: 2008 | B100: 3 | C100: 9 | D100: 0.907 | E100: 0.01748520905
A101: 2002 | B101: 11 | C101: 29 | D101: 1.231 | E101: 0.01783906126
A102: 2002 | B102: 12 | C102: 7 | D102: 0.913 | E102: 0.01817721589
A103: 2009 | B103: 5 | C103: 27 | D103: 0.491 | E103: 0.01906360557
A104: 2009 | B104: 4 | C104: 20 | D104: 1.076 | E104: 0.01976734714
A105: 2013 | B105: 5 | C105: 3 | D105: 0.54 | E105: 0.02010186641
A106: 2004 | B106: 7 | C106: 11 | D106: 1.956 | E106: 0.02036410468
A107: 2010 | B107: 11 | C107: 9 | D107: 0.947 | E107: 0.02093161661
A108: 2012 | B108: 8 | C108: 1 | D108: 0.512 | E108: 0.02095930804
A109: 2010 | B109: 7 | C109: 12 | D109: 1.461 | E109: 0.02115505625
A110: 2012 | B110: 3 | C110: 25 | D110: 0.472 | E110: 0.02124638865
A111: 2001 | B111: 7 | C111: 21 | D111: 1.101 | E111: 0.02124702889
A112: 2013 | B112: 5 | C112: 5 | D112: 0.887 | E112: 0.02157437578
A113: 2007 | B113: 10 | C113: 1 | D113: 2.061 | E113: 0.02159503702
A114: 2001 | B114: 10 | C114: 11 | D114: 1.089 | E114: 0.02164124836
A115: 2004 | B115: 10 | C115: 24 | D115: 0.84 | E115: 0.02165186186
A116: 2013 | B116: 7 | C116: 12 | D116: 0.429 | E116: 0.02188790778
A117: 2009 | B117: 8 | C117: 27 | D117: 0.845 | E117: 0.02207534697
A118: 2001 | B118: 3 | C118: 19 | D118: 1.083 | E118: 0.02216361288
A119: 2008 | B119: 6 | C119: 23 | D119: 1.533 | E119: 0.02237483026
A120: 2012 | B120: 9 | C120: 21 | D120: 0.669 | E120: 0.02297714319
A121: 2003 | B121: 6 | C121: 19 | D121: 0.999 | E121: 0.02313276886
A122: 2008 | B122: 7 | C122: 14 | D122: 0.796 | E122: 0.02338629865
A123: 2011 | B123: 4 | C123: 17 | D123: 0.73 | E123: 0.02339540646
A124: 2014 | B124: 1 | C124: 6 | D124: 1.555 | E124: 0.0233972921
A125: 2013 | B125: 8 | C125: 6 | D125: 1.105 | E125: 0.02405561402
A126: 2009 | B126: 10 | C126: 10 | D126: 1.92 | E126: 0.02418343848
A127: 2011 | B127: 3 | C127: 4 | D127: 1.216 | E127: 0.02471914788
A128: 2000 | B128: 6 | C128: 23 | D128: 0.995 | E128: 0.02487036005
A129: 2008 | B129: 2 | C129: 4 | D129: 2.06 | E129: 0.02556783419
A130: 2007 | B130: 10 | C130: 3 | D130: 1.465 | E130: 0.02566938061
A131: 2000 | B131: 5 | C131: 1 | D131: 1.112 | E131: 0.02594178357
A132: 2003 | B132: 12 | C132: 27 | D132: 1.341 | E132: 0.02623504759
A133: 2005 | B133: 8 | C133: 28 | D133: 1.256 | E133: 0.0264952435
A134: 2012 | B134: 11 | C134: 21 | D134: 1.688 | E134: 0.02663697696
A135: 2004 | B135: 3 | C135: 9 | D135: 0.907 | E135: 0.02688325699
A136: 2011 | B136: 7 | C136: 31 | D136: 0.425 | E136: 0.0269810414
A137: 2001 | B137: 5 | C137: 12 | D137: 0.375 | E137: 0.02705564305
A138: 2009 | B138: 9 | C138: 26 | D138: 0.589 | E138: 0.02783410048
A139: 2006 | B139: 7 | C139: 27 | D139: 1.421 | E139: 0.02826644706
A140: 2005 | B140: 7 | C140: 5 | D140: 1.647 | E140: 0.02828830683
A141: 2006 | B141: 1 | C141: 6 | D141: 0.639 | E141: 0.02848871079
A142: 2010 | B142: 2 | C142: 9 | D142: 1.044 | E142: 0.02861163494
A143: 2001 | B143: 4 | C143: 8 | D143: 1.017 | E143: 0.02861760784
A144: 2011 | B144: 8 | C144: 8 | D144: 0.89 | E144: 0.02878264413
A145: 2014 | B145: 5 | C145: 8 | D145: 0.993 | E145: 0.02925297073
A146: 2004 | B146: 12 | C146: 16 | D146: 0.982 | E146: 0.02937226891
A147: 2012 | B147: 5 | C147: 3 | D147: 2.364 | E147: 0.02942990153
A148: 2010 | B148: 12 | C148: 18 | D148: 0.481 | E148: 0.02969672727
A149: 2011 | B149: 10 | C149: 14 | D149: 1.045 | E149: 0.0298609527
A150: 2009 | B150: 12 | C150: 16 | D150: 1.098 | E150: 0.03085431137
A151: 2004 | B151: 9 | C151: 27 | D151: 1.586 | E151: 0.03093286171
A152: 2000 | B152: 1 | C152: 15 | D152: 1.0614 | E152: 0.0309412301
A153: 2001 | B153: 11 | C153: 14 | D153: 1.025 | E153: 0.03095136309
A154: 2010 | B154: 11 | C154: 27 | D154: 1.271 | E154: 0.03095691932
A155: 2009 | B155: 10 | C155: 28 | D155: 3.334 | E155: 0.03108320393
A156: 2002 | B156: 5 | C156: 19 | D156: 1.149 | E156: 0.03124134807
A157: 2007 | B157: 3 | C157: 9 | D157: 1.086 | E157: 0.03188043747
A158: 2010 | B158: 6 | C158: 10 | D158: 0.375 | E158: 0.03191880741
A159: 2011 | B159: 11 | C159: 18 | D159: 2.487 | E159: 0.03227993879
A160: 2008 | B160: 6 | C160: 11 | D160: 0.632 | E160: 0.03234139371
A161: 2008 | B161: 10 | C161: 7 | D161: 1.175 | E161: 0.03238375518
A162: 2004 | B162: 10 | C162: 21 | D162: 2.99 | E162: 0.03240805061
A163: 2012 | B163: 8 | C163: 22 | D163: 1.108 | E163: 0.03286907797
A164: 2006 | B164: 12 | C164: 24 | D164: 1.259 | E164: 0.03296565624
A165: 2013 | B165: 5 | C165: 27 | D165: 0.342 | E165: 0.03310926482
A166: 2014 | B166: 6 | C166: 8 | D166: 1.457 | E166: 0.03323900168
A167: 2006 | B167: 11 | C167: 17 | D167: 1.038 | E167: 0.03328850309
A168: 2004 | B168: 5 | C168: 29 | D168: 0.509 | E168: 0.03352199676
A169: 2007 | B169: 11 | C169: 28 | D169: 2.412 | E169: 0.0336524512
A170: 2007 | B170: 6 | C170: 24 | D170: 1.388 | E170: 0.03383619934
A171: 2008 | B171: 2 | C171: 24 | D171: 0.898 | E171: 0.03424860328
A172: 2007 | B172: 10 | C172: 4 | D172: 1.223 | E172: 0.03431400999
A173: 2004 | B173: 3 | C173: 30 | D173: 1.247 | E173: 0.03443397989
A174: 2011 | B174: 3 | C174: 1 | D174: 1.006 | E174: 0.03474530096
A175: 2005 | B175: 5 | C175: 25 | D175: 0.944 | E175: 0.03487086869
A176: 2001 | B176: 3 | C176: 27 | D176: 1.17 | E176: 0.03500920167
A177: 2001 | B177: 3 | C177: 28 | D177: 0.92 | E177: 0.03518847182
A178: 2001 | B178: 8 | C178: 2 | D178: 1.069 | E178: 0.03521866305
A179: 2004 | B179: 1 | C179: 20 | D179: 1.538 | E179: 0.03607663959
A180: 2001 | B180: 7 | C180: 23 | D180: 2.386 | E180: 0.03627129947
A181: 2012 | B181: 8 | C181: 11 | D181: 0.558 | E181: 0.03676510364
A182: 2012 | B182: 3 | C182: 16 | D182: 1.558 | E182: 0.03695908465
A183: 2002 | B183: 3 | C183: 12 | D183: 0.584 | E183: 0.03708500472
A184: 2002 | B184: 4 | C184: 2 | D184: 0.655 | E184: 0.03722177436
A185: 2003 | B185: 7 | C185: 3 | D185: 0.531 | E185: 0.03743290221
A186: 2002 | B186: 3 | C186: 29 | D186: 0.636 | E186: 0.03745374768
A187: 2011 | B187: 3 | C187: 25 | D187: 0.459 | E187: 0.03745791191
A188: 2006 | B188: 10 | C188: 2 | D188: 1.278 | E188: 0.03766171042
A189: 2000 | B189: 1 | C189: 23 | D189: 1.6788 | E189: 0.03787071202
A190: 2005 | B190: 2 | C190: 26 | D190: 0.678 | E190: 0.03792554548
A191: 2007 | B191: 2 | C191: 16 | D191: 1.011 | E191: 0.03794817101
A192: 2010 | B192: 5 | C192: 3 | D192: 0.537 | E192: 0.03838814412
A193: 2002 | B193: 8 | C193: 14 | D193: 1.488 | E193: 0.03857112736
A194: 2012 | B194: 5 | C194: 29 | D194: 0.428 | E194: 0.03879073818
A195: 2001 | B195: 1 | C195: 18 | D195: 1.092 | E195: 0.0391749288
A196: 2001 | B196: 9 | C196: 18 | D196: 2.869 | E196: 0.03921969316
A197: 2008 | B197: 7 | C197: 15 | D197: 0.705 | E197: 0.03922636713
A198: 2006 | B198: 1 | C198: 5 | D198: 0.528 | E198: 0.03925307376
A199: 2010 | B199: 11 | C199: 11 | D199: 2.772 | E199: 0.03930469557
A200: 2004 | B200: 8 | C200: 23 | D200: 1.091 | E200: 0.03936414948
... 5077 more rows

Sheet 50amostras10
A2: Média
A3: Desvio Padrão
A4: Variância
B7: 1 | C7: 2 | D7: 3 | E7: 4 | F7: 5 | G7: 6 | H7: 7 | I7: 8 | J7: 9 | K7: 10 | L7: 11 | M7: 12 | N7: 13 | O7: 14 | P7: 15 | Q7: 16 | R7: 17 | S7: 18 | T7: 19 | U7: 20 | V7: 21 | W7: 22 | X7: 23 | Y7: 24 | Z7: 25 | AA7: 26 | AB7: 27 | AC7: 28 | AD7: 29 | AE7: 30 | AF7: 31 | AG7: 32 | AH7: 33 | AI7: 34 | AJ7: 35 | AK7: 36 | AL7: 37 | AM7: 38 | AN7: 39 | AO7: 40 | AP7: 41 | AQ7: 42 | AR7: 43 | AS7: 44 | AT7: 45 | AU7: 46 | AV7: 47 | AW7: 48 | AX7: 49 | AY7: 50
B8: 1.203 | C8: 0.583 | D8: 2.824 | E8: 0.862 | F8: 0.458 | G8: 0.852 | H8: 0.684 | I8: 1.378 | J8: 1.309 | K8: 1.59 | L8: 0.828 | M8: 1.029 | N8: 0.597 | O8: 0.403 | P8: 0.315 | Q8: 0.827 | R8: 0.782 | S8: 2.263 | T8: 1.4983 | U8: 0.494 | V8: 1.03 | W8: 1.028 | X8: 0.956 | Y8: 1.702 | Z8: 0.719 | AA8: 1.094 | AB8: 2.019 | AC8: 1.186 | AD8: 0.889 | AE8: 1.19 | AF8: 0.703 | AG8: 2.479 | AH8: 0.687 | AI8: 0.801 | AJ8: 1.113 | AK8: 0.923 | AL8: 1.159 | AM8: 1.018 | AN8: 1.19 | AO8: 0.758 | AP8: 1.034 | AQ8: 1.848 | AR8: 1.257 | AS8: 1.464 | AT8: 1.848 | AU8: 1.119 | AV8: 1.036 | AW8: 0.272 | AX8: 0.734 | AY8: 0.868
B9: 1.537 | C9: 1.594 | D9: 0.397 | E9: 0.551 | F9: 0.527 | G9: 2.096 | H9: 1.111 | I9: 0.507 | J9: 1.2 | K9: 1.054 | L9: 0.941 | M9: 0.99 | N9: 2.476 | O9: 3.361 | P9: 2.346 | Q9: 1.177 | R9: 0.643 | S9: 2.296 | T9: 1.206 | U9: 0.714 | V9: 1.228 | W9: 1.75 | X9: 0.712 | Y9: 0.825 | Z9: 1.289 | AA9: 0.344 | AB9: 1.1905 | AC9: 0.905 | AD9: 1.259 | AE9: 1.209 | AF9: 2.442 | AG9: 0.979 | AH9: 0.578 | AI9: 0.475 | AJ9: 0.504 | AK9: 1.258 | AL9: 0.835 | AM9: 1.515 | AN9: 2.856 | AO9: 0.37 | AP9: 2.033 | AQ9: 0.833 | AR9: 0.488 | AS9: 1.674 | AT9: 0.879 | AU9: 1.775 | AV9: 1.423 | AW9: 1.158 | AX9: 3.122 | AY9: 0.633
B10: 1.547 | C10: 1.802 | D10: 0.894 | E10: 0.652 | F10: 0.64 | G10: 1.34 | H10: 0.85 | I10: 1.36 | J10: 0.951 | K10: 1.401 | L10: 1.127 | M10: 0.52 | N10: 1.68 | O10: 0.848 | P10: 0.841 | Q10: 0.972 | R10: 1.198 | S10: 1.404 | T10: 1.298 | U10: 0.39 | V10: 2.273 | W10: 1.761 | X10: 1.015 | Y10: 0.918 | Z10: 1.2 | AA10: 0.807 | AB10: 1.532 | AC10: 1.72 | AD10: 1.317 | AE10: 1.6155 | AF10: 1.867 | AG10: 1.261 | AH10: 1.431 | AI10: 0.472 | AJ10: 0.814 | AK10: 1.27 | AL10: 2.549 | AM10: 0.793 | AN10: 1.206 | AO10: 1.051 | AP10: 0.654 | AQ10: 1.995 | AR10: 1.674 | AS10: 0.683 | AT10: 1.214 | AU10: 1.328 | AV10: 3.109 | AW10: 0.913 | AX10: 0.7 | AY10: 0.467
B11: 0.99 | C11: 1.272 | D11: 0.588 | E11: 0.941 | F11: 0.907 | G11: 0.671 | H11: 0.53 | I11: 1.37 | J11: 0.892 | K11: 1.365 | L11: 1.18 | M11: 1.356 | N11: 1.4628 | O11: 0.613 | P11: 2.89 | Q11: 0.996 | R11: 2.183 | S11: 1.111 | T11: 1.124 | U11: 1.402 | V11: 0.92 | W11: 1.137 | X11: 0.726 | Y11: 1.434 | Z11: 0.634 | AA11: 1.912 | AB11: 0.643 | AC11: 1.214 | AD11: 0.52 | AE11: 0.747 | AF11: 1.296 | AG11: 0.315 | AH11: 0.694 | AI11: 1.387 | AJ11: 1.012 | AK11: 2.036 | AL11: 0.927 | AM11: 1.042 | AN11: 0.651 | AO11: 0.837 | AP11: 0.488 | AQ11: 1.712 | AR11: 1.308 | AS11: 2.778 | AT11: 0.598 | AU11: 0.88773 | AV11: 0.715 | AW11: 0.8129 | AX11: 2.109 | AY11: 1.361
B12: 0.524 | C12: 1.344 | D12: 1.096 | E12: 0.883 | F12: 1.534 | G12: 1.097 | H12: 1.675 | I12: 0.794 | J12: 0.907 | K12: 0.742 | L12: 0.993 | M12: 1.353 | N12: 1.593 | O12: 1.775 | P12: 0.915 | Q12: 0.912 | R12: 0.801 | S12: 1.274 | T12: 0.94 | U12: 1.604 | V12: 1.605 | W12: 2.612 | X12: 1.195 | Y12: 2.677 | Z12: 1.137 | AA12: 0.698 | AB12: 2.544 | AC12: 0.547 | AD12: 1.155 | AE12: 0.892 | AF12: 0.838 | AG12: 0.94 | AH12: 0.987 | AI12: 0.997 | AJ12: 1.214 | AK12: 2.261 | AL12: 1.175 | AM12: 0.703 | AN12: 1.514 | AO12: 0.429 | AP12: 1.213 | AQ12: 1.547 | AR12: 0.9 | AS12: 1.672 | AT12: 0.763 | AU12: 0.968 | AV12: 0.791 | AW12: 1.023 | AX12: 1.556 | AY12: 1.412
B13: 0.485 | C13: 0.882 | D13: 1.302 | E13: 1.136 | F13: 1.239 | G13: 0.723 | H13: 1.042 | I13: 0.795 | J13: 0.619 | K13: 0.807 | L13: 2.677 | M13: 1.317 | N13: 1.4887 | O13: 0.879 | P13: 1.142 | Q13: 0.859 | R13: 1.608 | S13: 0.937 | T13: 0.632 | U13: 1.0442 | V13: 1.188 | W13: 0.545 | X13: 1.021 | Y13: 1.08 | Z13: 0.835 | AA13: 1.31 | AB13: 0.479 | AC13: 1.854 | AD13: 1.003 | AE13: 1.075 | AF13: 0.726 | AG13: 1.483 | AH13: 1.283 | AI13: 1.069 | AJ13: 0.743 | AK13: 0.808 | AL13: 1.094 | AM13: 1.511 | AN13: 1.052 | AO13: 2.23 | AP13: 1.46 | AQ13: 1.455 | AR13: 0.621 | AS13: 0.543 | AT13: 1.135 | AU13: 1.341 | AV13: 0.848 | AW13: 2.32 | AX13: 0.509 | AY13: 1.103
B14: 1.524 | C14: 0.576 | D14: 0.978 | E14: 0.667 | F14: 1.052 | G14: 0.803 | H14: 0.96 | I14: 0.81 | J14: 1.178 | K14: 1.046 | L14: 0.605 | M14: 0.671 | N14: 0.823 | O14: 0.716 | P14: 0.919 | Q14: 0.4 | R14: 0.616 | S14: 0.844 | T14: 0.766 | U14: 0.709 | V14: 1.252 | W14: 0.388 | X14: 1.549 | Y14: 0.573 | Z14: 0.874 | AA14: 1.159 | AB14: 1.082 | AC14: 0.632 | AD14: 0.468 | AE14: 0.701 | AF14: 1.428 | AG14: 1.309 | AH14: 1.231 | AI14: 1.695 | AJ14: 1.223 | AK14: 0.706 | AL14: 0.749 | AM14: 1.763 | AN14: 1.225 | AO14: 1.474 | AP14: 1.264 | AQ14: 2.549 | AR14: 0.669 | AS14: 0.507 | AT14: 1.415 | AU14: 1.125 | AV14: 0.901 | AW14: 2.946 | AX14: 1.544 | AY14: 3.072
B15: 1.187 | C15: 0.751 | D15: 2.071 | E15: 0.817 | F15: 0.719 | G15: 2.009 | H15: 1.194 | I15: 0.557 | J15: 1.061 | K15: 0.672 | L15: 0.906 | M15: 0.53 | N15: 1.128 | O15: 1.126 | P15: 2.023 | Q15: 1.08 | R15: 0.782 | S15: 0.865 | T15: 0.913 | U15: 1.037 | V15: 0.928 | W15: 1.638 | X15: 0.718 | Y15: 0.519 | Z15: 0.469 | AA15: 2.724 | AB15: 0.772 | AC15: 0.728 | AD15: 1.196 | AE15: 1.041 | AF15: 0.407 | AG15: 1.379 | AH15: 2.368 | AI15: 1.019 | AJ15: 0.683 | AK15: 0.904 | AL15: 0.771 | AM15: 1.103 | AN15: 0.497 | AO15: 2.675 | AP15: 1.061 | AQ15: 1.166 | AR15: 1.307 | AS15: 2.015 | AT15: 0.949 | AU15: 1.151 | AV15: 1.225 | AW15: 0.495 | AX15: 0.888 | AY15: 0.791
B16: 1.528 | C16: 0.837 | D16: 1.191 | E16: 3.18 | F16: 1.014 | G16: 0.336 | H16: 0.555 | I16: 0.951 | J16: 1.147 | K16: 0.845 | L16: 1.244 | M16: 1.094 | N16: 0.687 | O16: 0.736 | P16: 1.688 | Q16: 2.273 | R16: 1.44 | S16: 1.04 | T16: 1.486 | U16: 0.637 | V16: 0.975 | W16: 1.428 | X16: 0.831 | Y16: 2.116 | Z16: 1.228 | AA16: 1.302 | AB16: 0.677 | AC16: 0.879 | AD16: 2.193 | AE16: 0.69498 | AF16: 1.592 | AG16: 1.456 | AH16: 0.617 | AI16: 1.254 | AJ16: 1.463 | AK16: 1.504 | AL16: 0.968 | AM16: 1.025 | AN16: 0.372 | AO16: 1.396 | AP16: 1.538 | AQ16: 0.866 | AR16: 1.284 | AS16: 1.08 | AT16: 0.949 | AU16: 0.908 | AV16: 1.869 | AW16: 1.246 | AX16: 0.565 | AY16: 1.535
B17: 0.611 | C17: 1.064 | D17: 0.602 | E17: 1.279 | F17: 1.313 | G17: 0.627 | H17: 0.801 | I17: 1.27 | J17: 0.947 | K17: 0.967 | L17: 0.473 | M17: 1.71 | N17: 1.379 | O17: 1.316 | P17: 0.63 | Q17: 0.623 | R17: 1.163 | S17: 2.839 | T17: 1.169 | U17: 0.916 | V17: 0.828 | W17: 0.986 | X17: 1.072 | Y17: 0.434 | Z17: 1.711 | AA17: 1.097 | AB17: 1.042 | AC17: 2.248 | AD17: 0.991 | AE17: 1.345 | AF17: 1.332 | AG17: 0.823 | AH17: 0.614 | AI17: 0.762 | AJ17: 0.607 | AK17: 2.409 | AL17: 1.627 | AM17: 0.338 | AN17: 0.304 | AO17: 2.29 | AP17: 1.427 | AQ17: 0.584 | AR17: 0.589 | AS17: 1.253 | AT17: 0.504 | AU17: 1.764 | AV17: 1.107 | AW17: 1.008 | AX17: 1.004 | AY17: 1.241

Sheet 50amostras100
A2: Média
A3: Desvio Padrão
A4: Variância
B7: 1 | C7: 2 | D7: 3 | E7: 4 | F7: 5 | G7: 6 | H7: 7 | I7: 8 | J7: 9 | K7: 10 | L7: 11 | M7: 12 | N7: 13 | O7: 14 | P7: 15 | Q7: 16 | R7: 17 | S7: 18 | T7: 19 | U7: 20 | V7: 21 | W7: 22 | X7: 23 | Y7: 24 | Z7: 25 | AA7: 26 | AB7: 27 | AC7: 28 | AD7: 29 | AE7: 30 | AF7: 31 | AG7: 32 | AH7: 33 | AI7: 34 | AJ7: 35 | AK7: 36 | AL7: 37 | AM7: 38 | AN7: 39 | AO7: 40 | AP7: 41 | AQ7: 42 | AR7: 43 | AS7: 44 | AT7: 45 | AU7: 46 | AV7: 47 | AW7: 48 | AX7: 49 | AY7: 50
B8: 0.944 | C8: 0.913 | D8: 0.6 | E8: 1.591 | F8: 1.874 | G8: 2.413 | H8: 1.31 | I8: 0.622 | J8: 2.45 | K8: 0.826 | L8: 1.06 | M8: 1.191 | N8: 1.25 | O8: 2.774 | P8: 1.672 | Q8: 1.662 | R8: 1.158 | S8: 1.104 | T8: 0.937 | U8: 1.243 | V8: 1.769 | W8: 0.735 | X8: 0.634 | Y8: 0.997 | Z8: 0.791 | AA8: 1.155 | AB8: 1.242 | AC8: 0.95 | AD8: 0.621 | AE8: 0.915 | AF8: 0.616 | AG8: 1.072 | AH8: 2.677 | AI8: 1.217 | AJ8: 0.364 | AK8: 1.56 | AL8: 1.769 | AM8: 2.413 | AN8: 1.961 | AO8: 0.497 | AP8: 0.698 | AQ8: 1.775 | AR8: 1.106 | AS8: 0.487 | AT8: 2.966 | AU8: 1.012 | AV8: 1.21 | AW8: 0.527 | AX8: 1.702 | AY8: 0.731
B9: 1.265 | C9: 0.491 | D9: 2.209 | E9: 0.829 | F9: 3.5 | G9: 0.979 | H9: 0.377 | I9: 2.412 | J9: 0.717 | K9: 1.07 | L9: 2.209 | M9: 0.936 | N9: 1.443 | O9: 0.938 | P9: 2.778 | Q9: 0.974 | R9: 1.623 | S9: 0.806 | T9: 1.098 | U9: 0.75 | V9: 2.49 | W9: 1.495 | X9: 0.984 | Y9: 1.387 | Z9: 0.824 | AA9: 1.636 | AB9: 0.852 | AC9: 0.964 | AD9: 2.074 | AE9: 0.526 | AF9: 0.906 | AG9: 0.738 | AH9: 1.434 | AI9: 0.494 | AJ9: 0.722 | AK9: 1.197 | AL9: 2.485 | AM9: 0.505 | AN9: 0.728 | AO9: 0.356 | AP9: 1.368 | AQ9: 0.613 | AR9: 1.53 | AS9: 1.839 | AT9: 1.072 | AU9: 0.816 | AV9: 0.535 | AW9: 1.214 | AX9: 0.803 | AY9: 0.774
B10: 0.822 | C10: 1.076 | D10: 1.466 | E10: 0.384 | F10: 1.595 | G10: 0.727 | H10: 1.212 | I10: 1.606 | J10: 1.984 | K10: 0.439 | L10: 1.214 | M10: 1.535 | N10: 0.959 | O10: 0.605 | P10: 0.683 | Q10: 1.153 | R10: 0.521 | S10: 0.873 | T10: 1.766 | U10: 1.987 | V10: 0.862 | W10: 0.823 | X10: 1.361 | Y10: 0.472 | Z10: 0.796 | AA10: 0.934 | AB10: 2.828 | AC10: 0.626 | AD10: 1.947 | AE10: 0.972 | AF10: 2.754 | AG10: 1.255 | AH10: 0.918 | AI10: 0.97 | AJ10: 0.933 | AK10: 1.558 | AL10: 1.523 | AM10: 0.29 | AN10: 1.597 | AO10: 1.34 | AP10: 0.991 | AQ10: 0.848 | AR10: 1.011 | AS10: 2.165 | AT10: 2.11 | AU10: 0.755 | AV10: 0.688 | AW10: 2.467 | AX10: 1.011 | AY10: 1.019
B11: 0.778 | C11: 0.54 | D11: 1.268 | E11: 1.8 | F11: 1.511 | G11: 1.647 | H11: 2.437 | I11: 0.473 | J11: 0.715 | K11: 2.198 | L11: 0.743 | M11: 2.614 | N11: 0.2682 | O11: 0.779 | P11: 1.674 | Q11: 0.981 | R11: 0.922 | S11: 0.468 | T11: 1.059 | U11: 1.663 | V11: 3.495 | W11: 1.031 | X11: 1.362 | Y11: 0.475 | Z11: 0.38151 | AA11: 1.081 | AB11: 1.719 | AC11: 0.686 | AD11: 0.698 | AE11: 0.911 | AF11: 0.805 | AG11: 1.718 | AH11: 0.825 | AI11: 0.981 | AJ11: 1.218 | AK11: 0.659 | AL11: 1.161 | AM11: 0.756 | AN11: 1.429 | AO11: 2.94 | AP11: 1.28 | AQ11: 3.361 | AR11: 0.97 | AS11: 1.201 | AT11: 0.629 | AU11: 0.706 | AV11: 3.454 | AW11: 0.73 | AX11: 1.2586 | AY11: 0.88
B12: 1.506 | C12: 1.956 | D12: 1.363 | E12: 0.966 | F12: 0.957 | G12: 1.047 | H12: 1.097 | I12: 0.939 | J12: 0.809 | K12: 0.608 | L12: 2.376 | M12: 1.053 | N12: 1.951 | O12: 0.995 | P12: 1.464 | Q12: 2.471 | R12: 1.393 | S12: 0.875 | T12: 0.762 | U12: 2.295 | V12: 0.954 | W12: 1.141 | X12: 0.879 | Y12: 0.801 | Z12: 0.258 | AA12: 1.075 | AB12: 3.231 | AC12: 1.1158 | AD12: 1.403 | AE12: 1.902 | AF12: 0.618 | AG12: 1.325 | AH12: 1.702 | AI12: 1.3367 | AJ12: 0.908 | AK12: 0.71482 | AL12: 1.852 | AM12: 1.912 | AN12: 1.463 | AO12: 0.649 | AP12: 2.574 | AQ12: 0.403 | AR12: 1.382 | AS12: 0.852 | AT12: 1.648 | AU12: 1.477 | AV12: 0.786 | AW12: 1.555 | AX12: 1.48 | AY12: 1.33
B13: 1.045 | C13: 0.947 | D13: 1.269 | E13: 1.551 | F13: 0.434 | G13: 1.206 | H13: 0.718 | I13: 1.659 | J13: 0.257 | K13: 2.381 | L13: 0.767 | M13: 1.818 | N13: 1.367 | O13: 0.504 | P13: 1.223 | Q13: 2.398 | R13: 0.754 | S13: 0.658 | T13: 1.397 | U13: 0.511 | V13: 0.916 | W13: 2.86 | X13: 0.607 | Y13: 0.665 | Z13: 0.58 | AA13: 0.983 | AB13: 0.996 | AC13: 0.727 | AD13: 2.098 | AE13: 1.315 | AF13: 0.428 | AG13: 1.711 | AH13: 0.86 | AI13: 3.063 | AJ13: 0.431 | AK13: 2.349 | AL13: 0.886 | AM13: 0.696 | AN13: 1.343 | AO13: 0.755 | AP13: 0.63 | AQ13: 1.402 | AR13: 1.276 | AS13: 0.492 | AT13: 0.796 | AU13: 0.85 | AV13: 0.947 | AW13: 1.191 | AX13: 1.581 | AY13: 1.313
B14: 0.976 | C14: 0.512 | D14: 2.014 | E14: 1.303 | F14: 0.963 | G14: 0.525 | H14: 2.016 | I14: 0.817 | J14: 0.712 | K14: 1.208 | L14: 1.01 | M14: 2.291 | N14: 0.666 | O14: 0.949 | P14: 0.298 | Q14: 1.834 | R14: 1.577 | S14: 1.034 | T14: 0.36 | U14: 1.751 | V14: 1.09 | W14: 2.747 | X14: 1.463 | Y14: 0.704 | Z14: 1.641 | AA14: 0.865 | AB14: 2.701 | AC14: 1.269 | AD14: 1.2443 | AE14: 0.966 | AF14: 1.6 | AG14: 1.228 | AH14: 3.013 | AI14: 0.829 | AJ14: 0.455 | AK14: 0.926 | AL14: 1.026 | AM14: 1.38 | AN14: 0.912 | AO14: 1.271 | AP14: 1.688 | AQ14: 1.028 | AR14: 0.934 | AS14: 1.48 | AT14: 0.872 | AU14: 0.987 | AV14: 0.976 | AW14: 0.825 | AX14: 1.511 | AY14: 1.014
B15: 0.8 | C15: 1.461 | D15: 1.298 | E15: 0.868 | F15: 1.667 | G15: 1.096 | H15: 1.051 | I15: 0.804 | J15: 0.389 | K15: 2.652 | L15: 0.783 | M15: 2.514 | N15: 0.76 | O15: 0.949 | P15: 1.03 | Q15: 1.589 | R15: 1.078 | S15: 1.44 | T15: 1.733 | U15: 1.857 | V15: 2.6366 | W15: 1.016 | X15: 0.683 | Y15: 1.174 | Z15: 0.923 | AA15: 3.048 | AB15: 1.008 | AC15: 1.807 | AD15: 0.784 | AE15: 1.043 | AF15: 0.603 | AG15: 0.469 | AH15: 0.615 | AI15: 1.629 | AJ15: 0.963 | AK15: 0.816 | AL15: 0.968 | AM15: 2.11 | AN15: 0.714 | AO15: 1.115 | AP15: 2.023 | AQ15: 2.694 | AR15: 0.626 | AS15: 0.741 | AT15: 0.896 | AU15: 2.96 | AV15: 0.763 | AW15: 0.663 | AX15: 0.931 | AY15: 0.719
B16: 0.95 | C16: 0.472 | D16: 0.604 | E16: 0.858 | F16: 0.751 | G16: 1.303 | H16: 0.858 | I16: 0.888 | J16: 0.535 | K16: 0.813 | L16: 0.819 | M16: 1.861 | N16: 0.701 | O16: 1.415 | P16: 0.744 | Q16: 1.128 | R16: 1.547 | S16: 1.105 | T16: 0.827 | U16: 1.467 | V16: 0.778 | W16: 1.193 | X16: 1.223 | Y16: 1.571 | Z16: 0.796 | AA16: 0.507 | AB16: 0.996 | AC16: 3.125 | AD16: 1.202 | AE16: 1.011 | AF16: 0.609 | AG16: 0.874 | AH16: 1.166 | AI16: 0.864 | AJ16: 0.554 | AK16: 1.238 | AL16: 1.116 | AM16: 2.482 | AN16: 2.062 | AO16: 0.881 | AP16: 0.919 | AQ16: 1.218 | AR16: 0.762 | AS16: 0.794 | AT16: 1.617 | AU16: 0.819 | AV16: 0.668 | AW16: 0.814 | AX16: 1.546 | AY16: 1.052
B17: 1.121 | C17: 1.101 | D17: 1.182 | E17: 1.106 | F17: 0.544 | G17: 1.936 | H17: 1.12 | I17: 1.12 | J17: 2.322 | K17: 1.139 | L17: 0.391 | M17: 0.981 | N17: 1.621 | O17: 1.135 | P17: 1.112 | Q17: 1.563 | R17: 0.869 | S17: 0.998 | T17: 2.298 | U17: 1.998 | V17: 2.685 | W17: 1.15 | X17: 0.743 | Y17: 0.618 | Z17: 1.265 | AA17: 0.955 | AB17: 1.696 | AC17: 0.615 | AD17: 2.573 | AE17: 4.083 | AF17: 0.994 | AG17: 0.835 | AH17: 1.098 | AI17: 1.551 | AJ17: 1.389 | AK17: 0.737 | AL17: 1.276 | AM17: 0.918 | AN17: 1.315 | AO17: 1.166 | AP17: 1.142 | AQ17: 1.484 | AR17: 0.632 | AS17: 1.178 | AT17: 4.9 | AU17: 1.065 | AV17: 1.5 | AW17: 0.753 | AX17: 1.039 | AY17: 1.239
B18: 0.681 | C18: 0.887 | D18: 1.084 | E18: 0.891 | F18: 1.225 | G18: 0.981 | H18: 0.754 | I18: 1.15 | J18: 1.096 | K18: 1.816 | L18: 0.811 | M18: 0.951 | N18: 1.613 | O18: 0.763 | P18: 1.023 | Q18: 1.098 | R18: 1.972 | S18: 1.217 | T18: 1.075 | U18: 0.87 | V18: 2.884 | W18: 0.686 | X18: 1.214 | Y18: 1.37 | Z18: 1.12 | AA18: 1.465 | AB18: 0.571 | AC18: 1.215 | AD18: 0.457 | AE18: 1.242 | AF18: 0.642 | AG18: 1.137 | AH18: 1.97 | AI18: 1.112 | AJ18: 1.157 | AK18: 0.527 | AL18: 0.633 | AM18: 0.896 | AN18: 0.654 | AO18: 1.085 | AP18: 0.915 | AQ18: 1.344 | AR18: 1.057 | AS18: 1.688 | AT18: 0.632 | AU18: 3.033 | AV18: 0.841 | AW18: 1.961 | AX18: 0.958 | AY18: 1.534
B19: 1.524 | C19: 2.061 | D19: 1.213 | E19: 1.003 | F19: 0.974 | G19: 1.125 | H19: 1.097 | I19: 0.961 | J19: 1.433 | K19: 0.929 | L19: 1.175 | M19: 1.079 | N19: 2.776 | O19: 0.598 | P19: 1.206 | Q19: 0.442 | R19: 1.352 | S19: 0.89 | T19: 0.822 | U19: 0.997 | V19: 0.724 | W19: 2.059 | X19: 1.012 | Y19: 0.332 | Z19: 1.211 | AA19: 0.502 | AB19: 1.04 | AC19: 0.663 | AD19: 1.787 | AE19: 1.589 | AF19: 0.78 | AG19: 0.634 | AH19: 1.895 | AI19: 1.675 | AJ19: 1.483 | AK19: 0.742 | AL19: 1.672 | AM19: 1.425 | AN19: 0.766 | AO19: 0.783 | AP19: 2.89 | AQ19: 1.638 | AR19: 1.078 | AS19: 0.73 | AT19: 0.675 | AU19: 1.408 | AV19: 1.003 | AW19: 0.641 | AX19: 3.47 | AY19: 0.907
B20: 1.069 | C20: 1.089 | D20: 1.362 | E20: 0.769 | F20: 1.229 | G20: 3.407 | H20: 0.9 | I20: 0.736 | J20: 0.602 | K20: 3.489 | L20: 1.492 | M20: 0.626 | N20: 0.86 | O20: 1.214 | P20: 0.608 | Q20: 0.637 | R20: 0.39 | S20: 1.03 | T20: 1.294 | U20: 1.292 | V20: 1.833 | W20: 0.568 | X20: 0.814 | Y20: 0.366 | Z20: 1.37 | AA20: 4.245 | AB20: 1.016 | AC20: 0.425 | AD20: 1.134 | AE20: 0.771 | AF20: 1.414 | AG20: 1.2 | AH20: 1.237 | AI20: 1.581 | AJ20: 1.338 | AK20: 0.691 | AL20: 1.7534 | AM20: 1.158 | AN20: 0.655 | AO20: 1.879 | AP20: 0.841 | AQ20: 0.883 | AR20: 0.532 | AS20: 0.725 | AT20: 1.146 | AU20: 0.725 | AV20: 0.58 | AW20: 2.8389 | AX20: 0.574 | AY20: 0.64
B21: 0.609 | C21: 0.84 | D21: 0.802 | E21: 0.702 | F21: 1.784 | G21: 1.425 | H21: 0.866 | I21: 0.522 | J21: 0.645 | K21: 0.915 | L21: 0.697 | M21: 0.899 | N21: 0.576 | O21: 0.879 | P21: 0.603 | Q21: 0.769 | R21: 3.221 | S21: 0.902 | T21: 0.823 | U21: 2.021 | V21: 1.11 | W21: 0.83189 | X21: 0.504 | Y21: 1.08 | Z21: 0.817 | AA21: 1.0775 | AB21: 2.1 | AC21: 1.154 | AD21: 1.905 | AE21: 0.835 | AF21: 0.864 | AG21: 1.289 | AH21: 0.588 | AI21: 1.939 | AJ21: 0.496 | AK21: 1.39 | AL21: 2.794 | AM21: 0.784 | AN21: 1.453 | AO21: 1.517 | AP21: 2.346 | AQ21: 0.687 | AR21: 1.906 | AS21: 0.945 | AT21: 1.069 | AU21: 0.676 | AV21: 0.3 | AW21: 0.962 | AX21: 0.938 | AY21: 0.527
B22: 0.985 | C22: 0.429 | D22: 0.901 | E22: 0.587 | F22: 1.332 | G22: 2.082 | H22: 0.806 | I22: 0.459 | J22: 1.187 | K22: 2.363 | L22: 1.113 | M22: 0.492 | N22: 1.263 | O22: 1.848 | P22: 0.807 | Q22: 2.82 | R22: 0.591 | S22: 1.395 | T22: 1.299 | U22: 1.379 | V22: 1.014 | W22: 1.033 | X22: 1.113 | Y22: 1.171 | Z22: 0.702 | AA22: 0.993 | AB22: 1.619 | AC22: 1.159 | AD22: 1.052 | AE22: 0.935 | AF22: 1.694 | AG22: 0.719 | AH22: 1.584 | AI22: 0.594 | AJ22: 0.98 | AK22: 1.192 | AL22: 1.137 | AM22: 1.062 | AN22: 0.871 | AO22: 1.151 | AP22: 0.315 | AQ22: 1.424 | AR22: 2.098 | AS22: 0.753 | AT22: 2.222 | AU22: 0.792 | AV22: 1.103 | AW22: 1.015 | AX22: 1.157 | AY22: 0.458
B23: 0.914 | C23: 0.845 | D23: 0.671 | E23: 0.622 | F23: 1.861 | G23: 0.816 | H23: 0.363 | I23: 2.987 | J23: 1.169 | K23: 1.78 | L23: 0.69 | M23: 2.262 | N23: 1.764 | O23: 0.911 | P23: 3.24 | Q23: 0.977 | R23: 1.516 | S23: 1.922 | T23: 1.002 | U23: 0.824 | V23: 1.793 | W23: 2.409 | X23: 0.745 | Y23: 0.883 | Z23: 0.58 | AA23: 1.129 | AB23: 0.697 | AC23: 0.799 | AD23: 1.966 | AE23: 0.473 | AF23: 1.097 | AG23: 1.314 | AH23: 1.728 | AI23: 1.424 | AJ23: 1.69 | AK23: 1.014 | AL23: 0.847 | AM23: 1.727 | AN23: 0.807 | AO23: 0.623 | AP23: 2.36 | AQ23: 0.982 | AR23: 1.444 | AS23: 1.413 | AT23: 0.691 | AU23: 1.292 | AV23: 0.92 | AW23: 2.081 | AX23: 0.627 | AY23: 2.779
B24: 1.37 | C24: 1.083 | D24: 0.367 | E24: 2.446 | F24: 0.686 | G24: 0.595 | H24: 1.842 | I24: 0.939 | J24: 1.01 | K24: 1.147 | L24: 1.6987 | M24: 2.302 | N24: 0.908 | O24: 1.53 | P24: 0.722 | Q24: 0.398 | R24: 0.643 | S24: 1.222 | T24: 0.676 | U24: 0.764 | V24: 1.216 | W24: 1.504 | X24: 0.909 | Y24: 1.389 | Z24: 1.313 | AA24: 1.499 | AB24: 1.691 | AC24: 0.823 | AD24: 1.0673 | AE24: 1.333 | AF24: 1.302 | AG24: 1.72 | AH24: 1.39 | AI24: 0.723 | AJ24: 0.436 | AK24: 0.886 | AL24: 2.209 | AM24: 0.947 | AN24: 1.122 | AO24: 2.273 | AP24: 1.303 | AQ24: 2.443 | AR24: 1.3158 | AS24: 2.189 | AT24: 1.147 | AU24: 0.928 | AV24: 1.146 | AW24: 0.477 | AX24: 0.336 | AY24: 1.691
B25: 1.21 | C25: 1.533 | D25: 0.912 | E25: 0.785 | F25: 0.926 | G25: 0.503 | H25: 1.126 | I25: 0.508 | J25: 0.995 | K25: 1.288 | L25: 1.739 | M25: 1.259 | N25: 1.151 | O25: 1.101 | P25: 0.774 | Q25: 1.286 | R25: 0.597 | S25: 1.996 | T25: 1.089 | U25: 0.538 | V25: 0.96 | W25: 0.904 | X25: 3.089 | Y25: 0.624 | Z25: 0.659 | AA25: 0.446 | AB25: 1.202 | AC25: 0.571 | AD25: 0.975 | AE25: 1.083 | AF25: 2.724 | AG25: 0.919 | AH25: 1 | AI25: 1.225 | AJ25: 1.22 | AK25: 0.505 | AL25: 1.028 | AM25: 1.062 | AN25: 2.628 | AO25: 1.08 | AP25: 0.837 | AQ25: 1.599 | AR25: 0.829 | AS25: 1.376 | AT25: 0.488 | AU25: 1.3 | AV25: 1.063 | AW25: 2.048 | AX25: 2.009 | AY25: 2.2457
B26: 1.033 | C26: 0.669 | D26: 1.563 | E26: 1.01 | F26: 0.74 | G26: 1.44 | H26: 0.6 | I26: 2.763 | J26: 1.652 | K26: 0.886 | L26: 1.115 | M26: 0.86 | N26: 1.125 | O26: 0.887 | P26: 1.362 | Q26: 1.058 | R26: 2.373 | S26: 1.58 | T26: 1.219 | U26: 0.992 | V26: 1.441 | W26: 0.706 | X26: 0.632 | Y26: 0.773 | Z26: 0.899 | AA26: 0.558 | AB26: 0.781 | AC26: 0.249 | AD26: 1.167 | AE26: 0.808 | AF26: 1.159 | AG26: 2.2417 | AH26: 1.656 | AI26: 0.886 | AJ26: 1.129 | AK26: 0.60276 | AL26: 1.39 | AM26: 0.295 | AN26: 1.152 | AO26: 0.4 | AP26: 0.504 | AQ26: 0.786 | AR26: 2.689 | AS26: 0.96 | AT26: 0.931 | AU26: 0.951 | AV26: 1.884 | AW26: 1.5728 | AX26: 0.803 | AY26: 0.738
B27: 0.755 | C27: 0.999 | D27: 0.785 | E27: 0.649 | F27: 2.434 | G27: 1.872 | H27: 1.251 | I27: 0.721 | J27: 1.045 | K27: 0.833 | L27: 1.838 | M27: 0.841 | N27: 1.341 | O27: 0.548 | P27: 1.846 | Q27: 0.706 | R27: 1.192 | S27: 1.292 | T27: 0.818 | U27: 1.043 | V27: 2.07 | W27: 0.808 | X27: 0.567 | Y27: 0.638 | Z27: 0.977 | AA27: 0.34 | AB27: 0.84 | AC27: 1.207 | AD27: 1.017 | AE27: 1.154 | AF27: 1.31 | AG27: 0.839 | AH27: 0.586 | AI27: 1.619 | AJ27: 1.769 | AK27: 1.43 | AL27: 1.887 | AM27: 1.188 | AN27: 2.002 | AO27: 0.859 | AP27: 1.044 | AQ27: 0.84 | AR27: 0.753 | AS27: 1.328 | AT27: 0.994 | AU27: 0.924 | AV27: 0.752 | AW27: 1.057 | AX27: 0.723 | AY27: 0.972
B28: 0.85 | C28: 0.796 | D28: 1.784 | E28: 1.483 | F28: 1.426 | G28: 0.84 | H28: 1.79 | I28: 1.562 | J28: 1.41 | K28: 0.86 | L28: 0.809 | M28: 1.354 | N28: 0.968 | O28: 3.109 | P28: 0.791 | Q28: 0.666 | R28: 1.307 | S28: 3.231 | T28: 1.411 | U28: 2.323 | V28: 2.269 | W28: 2.261 | X28: 0.716 | Y28: 1.088 | Z28: 0.455 | AA28: 0.841 | AB28: 0.832 | AC28: 0.795 | AD28: 1.472 | AE28: 0.55 | AF28: 0.698 | AG28: 1.762 | AH28: 2.192 | AI28: 3.137 | AJ28: 1.396 | AK28: 1.137 | AL28: 2.277 | AM28: 1.221 | AN28: 1.578 | AO28: 0.912 | AP28: 0.758 | AQ28: 1.255 | AR28: 1.279 | AS28: 0.286 | AT28: 0.925 | AU28: 1.071 | AV28: 0.466 | AW28: 0.842 | AX28: 1.097 | AY28: 1.61
B29: 0.82 | C29: 0.73 | D29: 1.495 | E29: 1.069 | F29: 1.008 | G29: 1.089 | H29: 0.337 | I29: 0.664 | J29: 1.125 | K29: 0.486 | L29: 0.89 | M29: 1.236 | N29: 0.88773 | O29: 0.822 | P29: 1.656 | Q29: 0.879 | R29: 0.814 | S29: 1.371 | T29: 0.83 | U29: 1.295 | V29: 0.585 | W29: 2.036 | X29: 0.822 | Y29: 0.775 | Z29: 0.902 | AA29: 0.996 | AB29: 0.727 | AC29: 1.701 | AD29: 1.26 | AE29: 0.601 | AF29: 1.912 | AG29: 0.911 | AH29: 2.773 | AI29: 1.24 | AJ29: 0.949 | AK29: 1.518 | AL29: 1.22 | AM29: 0.86127 | AN29: 1.46 | AO29: 0.996 | AP29: 2.845 | AQ29: 1.6612 | AR29: 0.743 | AS29: 0.862 | AT29: 1.321 | AU29: 1.015 | AV29: 0.744 | AW29: 0.857 | AX29: 0.671 | AY29: 0.812
B30: 1.318 | C30: 1.555 | D30: 0.688 | E30: 0.635 | F30: 2.101 | G30: 0.49 | H30: 0.713 | I30: 1.22 | J30: 1.213 | K30: 2.08 | L30: 0.769 | M30: 0.665 | N30: 1.328 | O30: 0.898 | P30: 1.693 | Q30: 1.447 | R30: 1.499 | S30: 0.886 | T30: 1.141 | U30: 1.087 | V30: 0.676 | W30: 1.27 | X30: 2.696 | Y30: 1.411 | Z30: 0.909 | AA30: 0.887 | AB30: 0.599 | AC30: 0.868 | AD30: 2.299 | AE30: 2.09 | AF30: 0.807 | AG30: 0.748 | AH30: 0.659 | AI30: 0.523 | AJ30: 0.241 | AK30: 0.714 | AL30: 1.323 | AM30: 0.791 | AN30: 3.339 | AO30: 0.972 | AP30: 1.634 | AQ30: 2.262 | AR30: 0.417 | AS30: 1.493 | AT30: 2.206 | AU30: 2.791 | AV30: 2.031 | AW30: 1.117 | AX30: 1.34 | AY30: 1.406
B31: 1.304 | C31: 1.105 | D31: 0.762 | E31: 1.081 | F31: 0.626 | G31: 0.654 | H31: 1.609 | I31: 0.895 | J31: 0.61466 | K31: 0.864 | L31: 0.602 | M31: 0.743 | N31: 1.775 | O31: 1.175 | P31: 1.567 | Q31: 1.436 | R31: 1.51 | S31: 0.748 | T31: 0.996 | U31: 2.385 | V31: 0.609 | W31: 1.258 | X31: 1.376 | Y31: 1.255 | Z31: 1.233 | AA31: 1.068 | AB31: 0.406 | AC31: 1.56 | AD31: 1.359 | AE31: 0.78 | AF31: 0.344 | AG31: 1.665 | AH31: 1.077 | AI31: 1.073 | AJ31: 1.089 | AK31: 1.923 | AL31: 0.823 | AM31: 0.943 | AN31: 1.015 | AO31: 1.177 | AP31: 0.699 | AQ31: 1.58 | AR31: 0.886 | AS31: 0.312 | AT31: 0.94 | AU31: 0.563 | AV31: 0.868 | AW31: 0.734 | AX31: 2.096 | AY31: 2.828
B32: 0.392 | C32: 1.92 | D32: 0.866 | E32: 0.871 | F32: 1.637 | G32: 0.54 | H32: 1.584 | I32: 0.658 | J32: 1.414 | K32: 0.582 | L32: 0.563 | M32: 0.781 | N32: 1.119 | O32: 0.718 | P32: 1.008 | Q32: 1.13 | R32: 1.285 | S32: 0.829 | T32: 1.985 | U32: 1.212 | V32: 1.088 | W32: 0.923 | X32: 1.104 | Y32: 2.524 | Z32: 0.96548 | AA32: 1.499 | AB32: 1.691 | AC32: 1.113 | AD32: 0.383 | AE32: 0.833 | AF32: 1.094 | AG32: 2.719 | AH32: 1.434 | AI32: 0.69 | AJ32: 0.959 | AK32: 0.876 | AL32: 0.933 | AM32: 1.855 | AN32: 0.94 | AO32: 0.827 | AP32: 0.935 | AQ32: 1.657 | AR32: 0.852 | AS32: 1.876 | AT32: 0.885 | AU32: 0.769 | AV32: 0.751 | AW32: 0.816 | AX32: 0.852 | AY32: 1.207
B33: 0.473 | C33: 1.216 | D33: 1.103 | E33: 1.227 | F33: 1.311 | G33: 1.349 | H33: 2.108 | I33: 0.779 | J33: 1.079 | K33: 1.024 | L33: 0.629 | M33: 1.107 | N33: 0.831 | O33: 0.769 | P33: 1.014 | Q33: 1.061 | R33: 1.475 | S33: 1.27 | T33: 0.905 | U33: 1.35 | V33: 1.627 | W33: 2.257 | X33: 2.036 | Y33: 0.859 | Z33: 0.766 | AA33: 1.063 | AB33: 1.056 | AC33: 1.104 | AD33: 1.164 | AE33: 1.042 | AF33: 1.535 | AG33: 0.974 | AH33: 0.519 | AI33: 0.77 | AJ33: 0.861 | AK33: 1.1084 | AL33: 0.907 | AM33: 1.579 | AN33: 1.163 | AO33: 0.703 | AP33: 1.011 | AQ33: 1.152 | AR33: 1.014 | AS33: 1.363 | AT33: 0.713 | AU33: 0.761 | AV33: 1.2975 | AW33: 0.801 | AX33: 0.93 | AY33: 0.985
B34: 1.432 | C34: 0.995 | D34: 1.011 | E34: 0.541 | F34: 0.8 | G34: 0.527 | H34: 1.15 | I34: 1.074 | J34: 0.747 | K34: 1.106 | L34: 1.095 | M34: 1.869 | N34: 0.997 | O34: 1.451 | P34: 1.809 | Q34: 0.398 | R34: 2.7 | S34: 0.776 | T34: 0.529 | U34: 0.788 | V34: 0.968 | W34: 0.842 | X34: 0.831 | Y34: 0.29 | Z34: 2.113 | AA34: 0.936 | AB34: 1.029 | AC34: 2.466 | AD34: 2.369 | AE34: 0.677 | AF34: 0.83 | AG34: 0.702 | AH34: 0.835 | AI34: 1.482 | AJ34: 1.888 | AK34: 0.778 | AL34: 0.79 | AM34: 1.087 | AN34: 1.44 | AO34: 0.932 | AP34: 1.529 | AQ34: 0.678 | AR34: 1.162 | AS34: 0.743 | AT34: 0.953 | AU34: 0.789 | AV34: 1.126 | AW34: 0.555 | AX34: 1.16 | AY34: 0.912
B35: 0.987 | C35: 2.06 | D35: 0.8 | E35: 0.723 | F35: 0.541 | G35: 0.74 | H35: 1.088 | I35: 0.874 | J35: 0.586 | K35: 0.649 | L35: 1.691 | M35: 1.225 | N35: 0.802 | O35: 1.019 | P35: 1.482 | Q35: 1.457 | R35: 0.49 | S35: 1.004 | T35: 0.575 | U35: 1.009 | V35: 0.771 | W35: 1.048 | X35: 0.717 | Y35: 1.1 | Z35: 1.034 | AA35: 2.255 | AB35: 0.742 | AC35: 0.704 | AD35: 0.618 | AE35: 0.772 | AF35: 2.025 | AG35: 0.806 | AH35: 0.672 | AI35: 2.006 | AJ35: 1.055 | AK35: 1.339 | AL35: 1.723 | AM35: 1.124 | AN35: 0.782 | AO35: 1.394 | AP35: 0.645 | AQ35: 2.631 | AR35: 2.098 | AS35: 0.605 | AT35: 0.88 | AU35: 0.753 | AV35: 1.107 | AW35: 1.194 | AX35: 1.412 | AY35: 0.451
B36: 1.083 | C36: 1.465 | D36: 0.679 | E36: 0.854 | F36: 2.946 | G36: 1.644 | H36: 1.512 | I36: 1.101 | J36: 2.214 | K36: 0.48 | L36: 1.049 | M36: 0.901 | N36: 1.963 | O36: 1.237 | P36: 0.515 | Q36: 0.867 | R36: 0.798 | S36: 0.548 | T36: 1.655 | U36: 0.939 | V36: 0.749 | W36: 0.779 | X36: 1.187 | Y36: 2.17 | Z36: 1.196 | AA36: 1.074 | AB36: 0.808 | AC36: 2.586 | AD36: 1.332 | AE36: 1.082 | AF36: 1.912 | AG36: 1.287 | AH36: 0.833 | AI36: 1.16 | AJ36: 1.197 | AK36: 1.106 | AL36: 0.801 | AM36: 1.053 | AN36: 0.616 | AO36: 0.944 | AP36: 2.721 | AQ36: 0.872 | AR36: 3.511 | AS36: 1.225 | AT36: 1.951 | AU36: 0.894 | AV36: 0.648 | AW36: 0.96 | AX36: 0.88 | AY36: 0.956
B37: 1.15 | C37: 1.112 | D37: 0.432 | E37: 1.138 | F37: 1.561 | G37: 0.701 | H37: 1.514 | I37: 1.951 | J37: 1.235 | K37: 1.936 | L37: 0.677 | M37: 0.848 | N37: 0.869 | O37: 0.733 | P37: 0.974 | Q37: 0.973 | R37: 0.871 | S37: 0.837 | T37: 0.528 | U37: 1.187 | V37: 1.094 | W37: 2.616 | X37: 1.434 | Y37: 1.011 | Z37: 0.977 | AA37: 1.35 | AB37: 0.945 | AC37: 1.687 | AD37: 2.102 | AE37: 0.479 | AF37: 1.7 | AG37: 1.875 | AH37: 0.67 | AI37: 0.848 | AJ37: 1.209 | AK37: 1.309 | AL37: 0.452 | AM37: 0.694 | AN37: 1.608 | AO37: 1.208 | AP37: 1.281 | AQ37: 0.764 | AR37: 0.478 | AS37: 0.51313 | AT37: 0.834 | AU37: 1.073 | AV37: 1.8 | AW37: 1.042 | AX37: 0.59 | AY37: 2.034
B38: 0.98 | C38: 1.341 | D38: 1.75 | E38: 0.885 | F38: 1.444 | G38: 1.098 | H38: 0.742 | I38: 1.009 | J38: 0.585 | K38: 0.735 | L38: 2.158 | M38: 0.791 | N38: 1.333 | O38: 1.377 | P38: 1.901 | Q38: 2.931 | R38: 0.685 | S38: 0.608 | T38: 0.502 | U38: 1.698 | V38: 1.175 | W38: 0.843 | X38: 0.982 | Y38: 2.194 | Z38: 0.769 | AA38: 1.399 | AB38: 1.454 | AC38: 0.643 | AD38: 1.524 | AE38: 2.544 | AF38: 1.238 | AG38: 1.727 | AH38: 0.726 | AI38: 7 | AJ38: 0.518 | AK38: 1.356 | AL38: 1.559 | AM38: 2.612 | AN38: 0.801 | AO38: 0.734 | AP38: 1.185 | AQ38: 0.713 | AR38: 1.267 | AS38: 1.032 | AT38: 1.096 | AU38: 2.556 | AV38: 0.62 | AW38: 1.675 | AX38: 2.048 | AY38: 1.411
B39: 0.435 | C39: 1.256 | D39: 1.5 | E39: 1.506 | F39: 1.2721 | G39: 0.779 | H39: 1.232 | I39: 0.951 | J39: 0.732 | K39: 1.885 | L39: 1.444 | M39: 0.715 | N39: 1.042 | O39: 0.684 | P39: 1.281 | Q39: 0.53 | R39: 1.536 | S39: 1.302 | T39: 1.501 | U39: 0.589 | V39: 0.927 | W39: 0.768 | X39: 1.333 | Y39: 0.665 | Z39: 0.84 | AA39: 1.37 | AB39: 0.318 | AC39: 1.601 | AD39: 1.385 | AE39: 0.643 | AF39: 1.395 | AG39: 0.713 | AH39: 0.718 | AI39: 1.265 | AJ39: 0.836 | AK39: 1.044 | AL39: 0.647 | AM39: 1.253 | AN39: 2.183 | AO39: 0.73 | AP39: 1.226 | AQ39: 1.107 | AR39: 1.363 | AS39: 1.157 | AT39: 1.385 | AU39: 1.444 | AV39: 0.858 | AW39: 0.53 | AX39: 0.593 | AY39: 1.938
B40: 1.499 | C40: 1.688 | D40: 1.11 | E40: 0.921 | F40: 1.727 | G40: 0.73634 | H40: 0.928 | I40: 0.972 | J40: 0.794 | K40: 0.595 | L40: 1.324 | M40: 3.109 | N40: 0.621 | O40: 1.197 | P40: 1.115 | Q40: 0.865 | R40: 0.633 | S40: 0.559 | T40: 1.746 | U40: 0.542 | V40: 2.549 | W40: 2.304 | X40: 0.522 | Y40: 1.955 | Z40: 0.971 | AA40: 1.469 | AB40: 3.105 | AC40: 1.318 | AD40: 0.387 | AE40: 1.532 | AF40: 1.859 | AG40: 0.399 | AH40: 1.112 | AI40: 0.921 | AJ40: 1.406 | AK40: 0.854 | AL40: 0.582 | AM40: 1.754 | AN40: 1.198 | AO40: 0.536 | AP40: 1.448 | AQ40: 1.504 | AR40: 1.539 | AS40: 1.087 | AT40: 1.266 | AU40: 1.42 | AV40: 1.535 | AW40: 0.85 | AX40: 1.761 | AY40: 2.376
B41: 0.521 | C41: 0.907 | D41: 1.093 | E41: 0.672 | F41: 1.116 | G41: 1.2 | H41: 0.845 | I41: 1.179 | J41: 1.199 | K41: 1.4321 | L41: 1.056 | M41: 1.423 | N41: 0.946 | O41: 1.788 | P41: 0.892 | Q41: 1.46 | R41: 1.243 | S41: 1.914 | T41: 0.776 | U41: 1.14 | V41: 0.835 | W41: 0.651 | X41: 0.531 | Y41: 1.035 | Z41: 1.099 | AA41: 1.951 | AB41: 1.091 | AC41: 0.246 | AD41: 0.857 | AE41: 1.1905 | AF41: 0.5 | AG41: 0.893 | AH41: 1.259 | AI41: 1.134 | AJ41: 1.303 | AK41: 1.17 | AL41: 0.736 | AM41: 0.98 | AN41: 0.643 | AO41: 1.26 | AP41: 1.786 | AQ41: 1.039 | AR41: 0.843 | AS41: 1.057 | AT41: 2.438 | AU41: 1.135 | AV41: 1.061 | AW41: 1.111 | AX41: 1.025 | AY41: 0.625
B42: 1.86 | C42: 0.425 | D42: 0.866 | E42: 0.79 | F42: 1.027 | G42: 1.015 | H42: 2.437 | I42: 0.774 | J42: 2.041 | K42: 1.107 | L42: 1.613 | M42: 1.036 | N42: 0.971 | O42: 0.726 | P42: 1.336 | Q42: 0.894 | R42: 0.973 | S42: 1.819 | T42: 0.899 | U42: 1.335 | V42: 1.159 | W42: 1.519 | X42: 1.077 | Y42: 1.898 | Z42: 0.657 | AA42: 0.465 | AB42: 1.007 | AC42: 1.293 | AD42: 1.175 | AE42: 2.019 | AF42: 0.926 | AG42: 0.63 | AH42: 0.73 | AI42: 1.014 | AJ42: 1.793 | AK42: 0.747 | AL42: 0.888 | AM42: 1.29 | AN42: 0.782 | AO42: 0.78 | AP42: 2.718 | AQ42: 3.202 | AR42: 0.422 | AS42: 1.843 | AT42: 1.513 | AU42: 1.333 | AV42: 2.896 | AW42: 0.684 | AX42: 0.923 | AY42: 1.053
B43: 2.074 | C43: 0.375 | D43: 1.089 | E43: 0.949 | F43: 0.943 | G43: 0.48 | H43: 0.512 | I43: 1.021 | J43: 1.104 | K43: 1.886 | L43: 1.008 | M43: 1.214 | N43: 0.565 | O43: 1.168 | P43: 1.153 | Q43: 1.23 | R43: 2.285 | S43: 1.623 | T43: 0.912 | U43: 0.338 | V43: 0.431 | W43: 0.586 | X43: 1.678 | Y43: 0.549 | Z43: 2.14 | AA43: 2.146 | AB43: 1.336 | AC43: 0.595 | AD43: 2.248 | AE43: 0.546 | AF43: 1.789 | AG43: 1.941 | AH43: 0.815 | AI43: 1.0956 | AJ43: 1.786 | AK43: 0.374 | AL43: 0.978 | AM43: 2.839 | AN43: 0.904 | AO43: 0.848 | AP43: 0.992 | AQ43: 3.21 | AR43: 0.675 | AS43: 0.688 | AT43: 0.665 | AU43: 1.562 | AV43: 1.27 | AW43: 2.066 | AX43: 1.175 | AY43: 0.502
B44: 0.516 | C44: 0.589 | D44: 0.703 | E44: 1.251 | F44: 1.341 | G44: 1.47 | H44: 1.493 | I44: 0.819 | J44: 0.769 | K44: 0.481 | L44: 1.246 | M44: 0.764 | N44: 1.722 | O44: 1.402 | P44: 0.441 | Q44: 1.627 | R44: 0.716 | S44: 0.533 | T44: 1.83 | U44: 1.025 | V44: 1.408 | W44: 1.729 | X44: 0.809 | Y44: 0.99 | Z44: 1.227 | AA44: 0.673 | AB44: 0.64542 | AC44: 0.9 | AD44: 0.879 | AE44: 0.577 | AF44: 0.591 | AG44: 1.565 | AH44: 1.337 | AI44: 0.675 | AJ44: 0.87 | AK44: 0.979 | AL44: 1.047 | AM44: 1.04 | AN44: 0.867 | AO44: 3.198 | AP44: 0.971 | AQ44: 3.373 | AR44: 0.734 | AS44: 0.999 | AT44: 0.838 | AU44: 1.5487 | AV44: 0.951 | AW44: 1.188 | AX44: 1.015 | AY44: 0.827
B45: 0.762 | C45: 1.421 | D45: 2.246 | E45: 1.526 | F45: 0.886 | G45: 1.349 | H45: 1.174 | I45: 1.602 | J45: 0.616 | K45: 0.927 | L45: 0.495 | M45: 0.539 | N45: 2.469 | O45: 0.727 | P45: 1.602 | Q45: 2.842 | R45: 0.783 | S45: 0.633 | T45: 0.726 | U45: 1.103 | V45: 1.498 | W45: 1.609 | X45: 0.828 | Y45: 1.756 | Z45: 0.724 | AA45: 1.4898 | AB45: 0.763 | AC45: 1.54 | AD45: 0.728 | AE45: 0.936 | AF45: 0.714 | AG45: 0.952 | AH45: 3.171 | AI45: 0.55 | AJ45: 0.258 | AK45: 1.585 | AL45: 2.74 | AM45: 0.865 | AN45: 0.642 | AO45: 0.96262 | AP45: 0.788 | AQ45: 0.797 | AR45: 0.755 | AS45: 0.963 | AT45: 2.969 | AU45: 0.775 | AV45: 0.557 | AW45: 1.05 | AX45: 0.405 | AY45: 0.714
B46: 0.861 | C46: 1.647 | D46: 1.219 | E46: 0.835 | F46: 0.732 | G46: 1.118 | H46: 0.687 | I46: 0.816 | J46: 1.2091 | K46: 1.001 | L46: 2.946 | M46: 0.729 | N46: 1.246 | O46: 1.314 | P46: 2.8403 | Q46: 1.036 | R46: 1.32 | S46: 1.4 | T46: 0.981 | U46: 1.763 | V46: 1.054 | W46: 1.137 | X46: 1.389 | Y46: 0.917 | Z46: 0.474 | AA46: 1.391 | AB46: 0.891 | AC46: 1.255 | AD46: 0.632 | AE46: 0.415 | AF46: 0.783 | AG46: 0.4 | AH46: 1.928 | AI46: 1.646 | AJ46: 0.799 | AK46: 0.95 | AL46: 0.419 | AM46: 0.844 | AN46: 0.685 | AO46: 1.249 | AP46: 1.153 | AQ46: 1.004 | AR46: 2.89 | AS46: 0.892 | AT46: 2.504 | AU46: 0.888 | AV46: 0.81 | AW46: 0.725 | AX46: 1.478 | AY46: 1.778
B47: 1.8 | C47: 0.639 | D47: 0.802 | E47: 0.537 | F47: 1.393 | G47: 0.662 | H47: 1.547 | I47: 2.5 | J47: 1.748 | K47: 0.841 | L47: 2.32 | M47: 1.205 | N47: 0.573 | O47: 0.837 | P47: 0.609 | Q47: 1.4975 | R47: 0.62 | S47: 0.778 | T47: 2.469 | U47: 1.511 | V47: 0.902 | W47: 0.459 | X47: 0.289 | Y47: 0.557 | Z47: 0.6 | AA47: 1.192 | AB47: 1.569 | AC47: 1.156 | AD47: 1.854 | AE47: 1.61 | AF47: 1.109 | AG47: 1.489 | AH47: 0.86 | AI47: 1.138 | AJ47: 1.336 | AK47: 0.673 | AL47: 1.032 | AM47: 0.937 | AN47: 1.847 | AO47: 0.551 | AP47: 0.571 | AQ47: 1.038 | AR47: 1.031 | AS47: 1.046 | AT47: 0.923 | AU47: 0.771 | AV47: 0.795 | AW47: 1.077 | AX47: 1.706 | AY47: 0.89
B48: 0.847 | C48: 1.044 | D48: 1.5178 | E48: 1.794 | F48: 0.849 | G48: 0.42 | H48: 1.031 | I48: 0.729 | J48: 1.922 | K48: 0.78 | L48: 1.023 | M48: 2.502 | N48: 1.278 | O48: 1.34 | P48: 0.769 | Q48: 0.761 | R48: 0.609 | S48: 1.255 | T48: 1.633 | U48: 0.703 | V48: 1.05 | W48: 0.527 | X48: 1.233 | Y48: 1.096 | Z48: 0.829 | AA48: 1.319 | AB48: 0.559 | AC48: 0.625 | AD48: 0.547 | AE48: 1.963 | AF48: 1.924 | AG48: 2.899 | AH48: 0.993 | AI48: 0.739 | AJ48: 1.541 | AK48: 0.375 | AL48: 1.092 | AM48: 1.274 | AN48: 1.285 | AO48: 1.022 | AP48: 1.312 | AQ48: 0.604 | AR48: 1.571 | AS48: 0.643 | AT48: 0.486 | AU48: 1.409 | AV48: 0.794 | AW48: 1.712 | AX48: 1.757 | AY48: 0.688
B49: 1.054 | C49: 1.017 | D49: 2.179 | E49: 1.233 | F49: 0.584 | G49: 0.734 | H49: 0.907 | I49: 0.532 | J49: 1.966 | K49: 0.869 | L49: 0.8129 | M49: 1.811 | N49: 0.713 | O49: 3.075 | P49: 0.998 | Q49: 1.944 | R49: 2.006 | S49: 0.958 | T49: 2.412 | U49: 1.042 | V49: 0.61 | W49: 0.984 | X49: 0.677 | Y49: 2.323 | Z49: 1.998 | AA49: 0.676 | AB49: 0.661 | AC49: 1.011 | AD49: 1.214 | AE49: 0.651 | AF49: 1.425 | AG49: 0.867 | AH49: 0.824 | AI49: 1.004 | AJ49: 0.906 | AK49: 1.721 | AL49: 0.785 | AM49: 1.111 | AN49: 1.568 | AO49: 0.811 | AP49: 0.669 | AQ49: 0.514 | AR49: 1.203 | AS49: 1.2192 | AT49: 0.35 | AU49: 1.355 | AV49: 1.37 | AW49: 1.027 | AX49: 1.006 | AY49: 1.16
B50: 0.811 | C50: 0.89 | D50: 1.549 | E50: 1.132 | F50: 1.475 | G50: 0.666 | H50: 0.95 | I50: 0.431 | J50: 1.169 | K50: 0.808 | L50: 0.913 | M50: 1.54 | N50: 1.08 | O50: 0.981 | P50: 0.982 | Q50: 2.295 | R50: 0.725 | S50: 0.753 | T50: 1.115 | U50: 0.793 | V50: 1.237 | W50: 0.78063 | X50: 1.398 | Y50: 2.037 | Z50: 1.242 | AA50: 2.588 | AB50: 2.114 | AC50: 0.567 | AD50: 1.72 | AE50: 1.444 | AF50: 1.399 | AG50: 1.159 | AH50: 2.466 | AI50: 1.28 | AJ50: 1.093 | AK50: 0.742 | AL50: 1.145 | AM50: 1.404 | AN50: 1.389 | AO50: 0.53 | AP50: 1.124 | AQ50: 1.275 | AR50: 1.731 | AS50: 0.816 | AT50: 0.709 | AU50: 1.428 | AV50: 1.36 | AW50: 2.284 | AX50: 0.617 | AY50: 1.8
B51: 1.253 | C51: 0.993 | D51: 0.738 | E51: 1.022 | F51: 0.777 | G51: 0.627 | H51: 1.865 | I51: 0.612 | J51: 1.451 | K51: 0.555 | L51: 1.158 | M51: 2.179 | N51: 0.885 | O51: 0.571 | P51: 0.522 | Q51: 0.79 | R51: 1.144 | S51: 1.216 | T51: 0.657 | U51: 1.515 | V51: 0.99 | W51: 0.846 | X51: 1.914 | Y51: 0.914 | Z51: 0.656 | AA51: 0.86 | AB51: 0.846 | AC51: 1.191 | AD51: 0.905 | AE51: 0.805 | AF51: 0.922 | AG51: 1.573 | AH51: 0.805 | AI51: 2.058 | AJ51: 1.402 | AK51: 1.624 | AL51: 2.284 | AM51: 2.296 | AN51: 1.585 | AO51: 0.541 | AP51: 0.964 | AQ51: 0.731 | AR51: 0.693 | AS51: 0.922 | AT51: 0.748 | AU51: 0.977 | AV51: 0.507 | AW51: 0.618 | AX51: 2.016 | AY51: 0.314
B52: 0.874 | C52: 0.982 | D52: 1.152 | E52: 0.629 | F52: 1.039 | G52: 0.793 | H52: 0.925 | I52: 0.711 | J52: 2.592 | K52: 0.601 | L52: 0.272 | M52: 0.92 | N52: 1.163 | O52: 1.121 | P52: 1.913 | Q52: 1.691 | R52: 2.067 | S52: 0.522 | T52: 1.523 | U52: 1.018 | V52: 1.242 | W52: 0.507 | X52: 1.644 | Y52: 1.309 | Z52: 1.302 | AA52: 1.318 | AB52: 0.929 | AC52: 0.582 | AD52: 1.186 | AE52: 0.988 | AF52: 3.698 | AG52: 0.775 | AH52: 1.274 | AI52: 1.554 | AJ52: 0.784 | AK52: 2.5 | AL52: 1.77 | AM52: 2.263 | AN52: 0.972 | AO52: 0.505 | AP52: 0.829 | AQ52: 0.819 | AR52: 2.636 | AS52: 1.521 | AT52: 2.01 | AU52: 2.996 | AV52: 1.378 | AW52: 1.42 | AX52: 0.734 | AY52: 0.569
B53: 1.253 | C53: 2.364 | D53: 3.1894 | E53: 1.035 | F53: 1.132 | G53: 0.863 | H53: 1.11 | I53: 0.348 | J53: 0.647 | K53: 1.004 | L53: 1.162 | M53: 0.821 | N53: 1.612 | O53: 2.404 | P53: 0.878 | Q53: 1.104 | R53: 1.711 | S53: 0.832 | T53: 0.304 | U53: 1.403 | V53: 2.007 | W53: 0.498 | X53: 0.993 | Y53: 2.048 | Z53: 1.252 | AA53: 2.195 | AB53: 1.14 | AC53: 0.991 | AD53: 1.23 | AE53: 3.077 | AF53: 0.73 | AG53: 1.558 | AH53: 1.185 | AI53: 0.433 | AJ53: 0.846 | AK53: 1.359 | AL53: 1.169 | AM53: 1.308 | AN53: 0.279 | AO53: 1.102 | AP53: 0.619 | AQ53: 1.4141 | AR53: 0.744 | AS53: 2.891 | AT53: 0.821 | AU53: 0.947 | AV53: 1.44 | AW53: 0.953 | AX53: 1.65 | AY53: 1.274
B54: 0.907 | C54: 0.481 | D54: 2.165 | E54: 1.076 | F54: 0.371 | G54: 0.517 | H54: 1.258 | I54: 0.855 | J54: 1.093 | K54: 0.565 | L54: 0.41 | M54: 0.704 | N54: 1.177 | O54: 0.403 | P54: 0.62 | Q54: 0.787 | R54: 0.965 | S54: 1.194 | T54: 0.372 | U54: 1.014 | V54: 1.213 | W54: 0.771 | X54: 1.765 | Y54: 0.805 | Z54: 1.386 | AA54: 0.711 | AB54: 0.723 | AC54: 2.193 | AD54: 0.82 | AE54: 0.861 | AF54: 1.33 | AG54: 2.146 | AH54: 0.925 | AI54: 1.431 | AJ54: 1.655 | AK54: 1.864 | AL54: 1.486 | AM54: 1.314 | AN54: 0.722 | AO54: 0.333 | AP54: 1.5 | AQ54: 1.156 | AR54: 0.688 | AS54: 2.388 | AT54: 1.271 | AU54: 1.147 | AV54: 1.585 | AW54: 1.403 | AX54: 1.906 | AY54: 1.63
B55: 1.721 | C55: 1.045 | D55: 0.535 | E55: 1.299 | F55: 1.698 | G55: 0.544 | H55: 1.874 | I55: 1.371 | J55: 1.233 | K55: 0.888 | L55: 2.63 | M55: 1.418 | N55: 1.153 | O55: 1.173 | P55: 2.105 | Q55: 1.011 | R55: 0.551 | S55: 1.145 | T55: 0.497 | U55: 1.31 | V55: 2.5 | W55: 0.816 | X55: 0.667 | Y55: 0.37 | Z55: 1.17 | AA55: 1.137 | AB55: 1.232 | AC55: 1.196 | AD55: 1.104 | AE55: 1.231 | AF55: 1.133 | AG55: 1.608 | AH55: 0.643 | AI55: 0.625 | AJ55: 1.091 | AK55: 0.608 | AL55: 0.913 | AM55: 0.613 | AN55: 0.732 | AO55: 0.788 | AP55: 0.729 | AQ55: 2.438 | AR55: 0.968 | AS55: 1.107 | AT55: 1.449 | AU55: 1.061 | AV55: 1.703 | AW55: 0.722 | AX55: 1.781 | AY55: 1.157
B56: 0.877 | C56: 1.098 | D56: 1.091 | E56: 0.562 | F56: 0.495 | G56: 1.268 | H56: 2.465 | I56: 0.84 | J56: 1.111 | K56: 1.544 | L56: 1.042 | M56: 0.9 | N56: 1.291 | O56: 1.209 | P56: 1.123 | Q56: 0.645 | R56: 0.692 | S56: 1.447 | T56: 1.225 | U56: 0.434 | V56: 0.938 | W56: 3.265 | X56: 2.67 | Y56: 0.966 | Z56: 1.713 | AA56: 1.376 | AB56: 0.765 | AC56: 0.468 | AD56: 0.633 | AE56: 0.916 | AF56: 1.258 | AG56: 0.977 | AH56: 2.532 | AI56: 1.11 | AJ56: 2.195 | AK56: 4.1 | AL56: 0.766 | AM56: 2.313 | AN56: 0.284 | AO56: 0.377 | AP56: 0.549 | AQ56: 0.91 | AR56: 1.3 | AS56: 1.154 | AT56: 1.223 | AU56: 1.178 | AV56: 1.836 | AW56: 0.582 | AX56: 0.417 | AY56: 1.102
B57: 0.604 | C57: 1.586 | D57: 1.711 | E57: 1.603 | F57: 0.527 | G57: 0.536 | H57: 0.313 | I57: 0.556 | J57: 0.494 | K57: 0.509 | L57: 1.23 | M57: 1.715 | N57: 1 | O57: 1.975 | P57: 1.002 | Q57: 0.761 | R57: 0.698 | S57: 1.099 | T57: 1.052 | U57: 0.494 | V57: 1.481 | W57: 0.612 | X57: 0.599 | Y57: 1.366 | Z57: 2.358 | AA57: 1.493 | AB57: 0.873 | AC57: 1.003 | AD57: 0.845 | AE57: 1.217 | AF57: 1.34 | AG57: 0.719 | AH57: 1.289 | AI57: 0.335 | AJ57: 0.374 | AK57: 0.73 | AL57: 0.632 | AM57: 0.983 | AN57: 0.994 | AO57: 2.032 | AP57: 0.528 | AQ57: 0.718 | AR57: 1.307 | AS57: 2.88 | AT57: 0.585 | AU57: 0.619 | AV57: 0.547 | AW57: 0.844 | AX57: 1.28 | AY57: 1.094
B58: 0.94 | C58: 1.0614 | D58: 1.207 | E58: 1.067 | F58: 1.346 | G58: 1.418 | H58: 0.717 | I58: 0.831 | J58: 0.744 | K58: 1.556 | L58: 1.006 | M58: 1.144 | N58: 0.733 | O58: 1.118 | P58: 0.726 | Q58: 1.306 | R58: 1.113 | S58: 0.91075 | T58: 1.514 | U58: 1.427 | V58: 2.01 | W58: 0.524 | X58: 2.797 | Y58: 0.981 | Z58: 0.891 | AA58: 1.014 | AB58: 1.084 | AC58: 1.155 | AD58: 0.924 | AE58: 0.814 | AF58: 1.112 | AG58: 1.086 | AH58: 1.735 | AI58: 1.841 | AJ58: 1.847 | AK58: 2.264 | AL58: 0.94 | AM58: 1.158 | AN58: 1.155 | AO58: 0.503 | AP58: 2.385 | AQ58: 1.476 | AR58: 1.232 | AS58: 1.033 | AT58: 1.083 | AU58: 0.907 | AV58: 0.708 | AW58: 1.358 | AX58: 0.709 | AY58: 0.947
B59: 0.621 | C59: 1.025 | D59: 0.955 | E59: 1.316 | F59: 0.761 | G59: 0.91 | H59: 0.682 | I59: 1.207 | J59: 0.96 | K59: 2.109 | L59: 1.227 | M59: 0.75 | N59: 1.264 | O59: 1.173 | P59: 1.578 | Q59: 1.963 | R59: 1.887 | S59: 1.715 | T59: 0.651 | U59: 1.4535 | V59: 1.21 | W59: 0.27 | X59: 0.859 | Y59: 0.84 | Z59: 1.913 | AA59: 1.122 | AB59: 1.052 | AC59: 0.52 | AD59: 2.458 | AE59: 1.249 | AF59: 1.299 | AG59: 0.547 | AH59: 1.055 | AI59: 3.147 | AJ59: 1.267 | AK59: 1.122 | AL59: 1.124 | AM59: 0.749 | AN59: 1.343 | AO59: 2.574 | AP59: 0.806 | AQ59: 1.712 | AR59: 0.679 | AS59: 1.545 | AT59: 0.972 | AU59: 0.892 | AV59: 0.791 | AW59: 1 | AX59: 0.937 | AY59: 2.3697
B60: 1.36 | C60: 1.271 | D60: 0.662 | E60: 1.136 | F60: 1.714 | G60: 1.075 | H60: 0.698 | I60: 0.998 | J60: 1.082 | K60: 0.7 | L60: 0.492 | M60: 1.202 | N60: 1.289 | O60: 0.32 | P60: 0.91 | Q60: 0.582 | R60: 2.989 | S60: 0.875 | T60: 1.206 | U60: 1.382 | V60: 1.759 | W60: 2.375 | X60: 0.746 | Y60: 1.011 | Z60: 1.789 | AA60: 1.401 | AB60: 0.868 | AC60: 1.317 | AD60: 1.956 | AE60: 1.119 | AF60: 1.084 | AG60: 0.319 | AH60: 1.693 | AI60: 3.166 | AJ60: 0.783 | AK60: 0.79 | AL60: 1.298 | AM60: 1.064 | AN60: 0.407 | AO60: 1.318 | AP60: 0.659 | AQ60: 1.259 | AR60: 0.657 | AS60: 2.676 | AT60: 1.123 | AU60: 0.951 | AV60: 2.106 | AW60: 0.662 | AX60: 1.815 | AY60: 1.428
B61: 1.177 | C61: 3.334 | D61: 0.806 | E61: 1.84 | F61: 0.984 | G61: 1.14 | H61: 1.245 | I61: 1.057 | J61: 1.007 | K61: 3.122 | L61: 0.449 | M61: 1.716 | N61: 0.821 | O61: 1.555 | P61: 0.49 | Q61: 0.834 | R61: 0.598 | S61: 0.961 | T61: 2.856 | U61: 0.97 | V61: 0.415 | W61: 1.551 | X61: 1.23 | Y61: 1.218 | Z61: 1.219 | AA61: 0.874 | AB61: 0.778 | AC61: 1.259 | AD61: 0.765 | AE61: 3.146 | AF61: 0.896 | AG61: 1.47 | AH61: 1.514 | AI61: 0.81 | AJ61: 0.826 | AK61: 0.617 | AL61: 1.206 | AM61: 2.105 | AN61: 0.697 | AO61: 1.027 | AP61: 1.129 | AQ61: 0.756 | AR61: 1.63 | AS61: 0.801 | AT61: 1.116 | AU61: 1.2 | AV61: 1.925 | AW61: 0.214 | AX61: 1.304 | AY61: 1.595
B62: 1.798 | C62: 1.149 | D62: 0.567 | E62: 0.899 | F62: 1.093 | G62: 0.828 | H62: 0.414 | I62: 1.54 | J62: 1.32 | K62: 0.734 | L62: 0.625 | M62: 0.851 | N62: 1.297 | O62: 0.725 | P62: 2.451 | Q62: 1.105 | R62: 1.741 | S62: 1.213 | T62: 1.19 | U62: 0.875 | V62: 1.264 | W62: 0.995 | X62: 1.952 | Y62: 0.613 | Z62: 1.322 | AA62: 1.212 | AB62: 1.6253 | AC62: 0.889 | AD62: 1.326 | AE62: 1.462 | AF62: 1.473 | AG62: 1.2 | AH62: 1.107 | AI62: 2.26 | AJ62: 1.014 | AK62: 0.966 | AL62: 1.4983 | AM62: 1.235 | AN62: 1.167 | AO62: 1.386 | AP62: 0.777 | AQ62: 1.765 | AR62: 0.737 | AS62: 1.509 | AT62: 0.871 | AU62: 1.309 | AV62: 0.51 | AW62: 1.409 | AX62: 1.581 | AY62: 1.871
B63: 0.756 | C63: 1.086 | D63: 0.505 | E63: 1.323 | F63: 1.515 | G63: 1.174 | H63: 0.99 | I63: 0.991 | J63: 1.241 | K63: 0.814 | L63: 0.94 | M63: 1.492 | N63: 1.287 | O63: 0.715 | P63: 1.059 | Q63: 0.451 | R63: 0.764 | S63: 2.29 | T63: 0.722 | U63: 2.26 | V63: 0.929 | W63: 0.79 | X63: 0.704 | Y63: 2.408 | Z63: 0.64615 | AA63: 0.567 | AB63: 1.345 | AC63: 0.684 | AD63: 0.599 | AE63: 0.853 | AF63: 0.745 | AG63: 1.471 | AH63: 0.848 | AI63: 2.031 | AJ63: 0.893 | AK63: 0.916 | AL63: 1.511 | AM63: 0.62 | AN63: 1.1413 | AO63: 2.593 | AP63: 0.747 | AQ63: 0.584 | AR63: 0.967 | AS63: 1.457 | AT63: 0.967 | AU63: 1.254 | AV63: 0.965 | AW63: 0.982 | AX63: 0.696 | AY63: 1.102
B64: 2.253 | C64: 0.375 | D64: 0.565 | E64: 1.159 | F64: 1.109 | G64: 1.248 | H64: 1.901 | I64: 2.153 | J64: 1.535 | K64: 0.836 | L64: 1.882 | M64: 1.787 | N64: 0.663 | O64: 1.146 | P64: 0.829 | Q64: 1.122 | R64: 2.876 | S64: 1.396 | T64: 0.62 | U64: 0.65 | V64: 0.531 | W64: 1.233 | X64: 0.939 | Y64: 0.957 | Z64: 2.213 | AA64: 0.459 | AB64: 0.69498 | AC64: 1.022 | AD64: 1.548 | AE64: 1.364 | AF64: 1.15 | AG64: 1.297 | AH64: 0.582 | AI64: 0.787 | AJ64: 1.747 | AK64: 0.637 | AL64: 2.223 | AM64: 0.894 | AN64: 0.711 | AO64: 1.456 | AP64: 1.084 | AQ64: 1.06 | AR64: 0.298 | AS64: 1.2 | AT64: 0.845 | AU64: 0.833 | AV64: 1.341 | AW64: 0.468 | AX64: 0.716 | AY64: 1.283
B65: 0.493 | C65: 2.487 | D65: 1.348 | E65: 1.184 | F65: 1.385 | G65: 1.015 | H65: 1.712 | I65: 1.335 | J65: 0.791 | K65: 1.426 | L65: 1.076 | M65: 2.945 | N65: 0.806 | O65: 0.775 | P65: 1.712 | Q65: 0.409 | R65: 0.417 | S65: 2.675 | T65: 0.8 | U65: 1.295 | V65: 0.769 | W65: 0.708 | X65: 1.333 | Y65: 1.222 | Z65: 1.317 | AA65: 0.442 | AB65: 1.041 | AC65: 1.806 | AD65: 0.887 | AE65: 1.07 | AF65: 1.509 | AG65: 1.799 | AH65: 1.09 | AI65: 0.803 | AJ65: 0.537 | AK65: 1.037 | AL65: 1.494 | AM65: 1.304 | AN65: 1.269 | AO65: 0.98 | AP65: 1.484 | AQ65: 4.269 | AR65: 0.69247 | AS65: 0.917 | AT65: 0.672 | AU65: 0.767 | AV65: 1.11 | AW65: 1.559 | AX65: 1.334 | AY65: 1.378
B66: 2.415 | C66: 0.632 | D66: 0.664 | E66: 0.72 | F66: 1.144 | G66: 1.791 | H66: 1.473 | I66: 1.689 | J66: 3.072 | K66: 0.756 | L66: 0.381 | M66: 0.976 | N66: 1.017 | O66: 2.7738 | P66: 0.806 | Q66: 3.003 | R66: 1.8386 | S66: 1.474 | T66: 1.18 | U66: 0.593 | V66: 0.426 | W66: 0.502 | X66: 0.541 | Y66: 0.304 | Z66: 1.495 | AA66: 0.983 | AB66: 0.701 | AC66: 0.852 | AD66: 0.73 | AE66: 1.139 | AF66: 2.201 | AG66: 2.882 | AH66: 0.884 | AI66: 1.166 | AJ66: 0.839 | AK66: 0.709 | AL66: 2.179 | AM66: 1.268 | AN66: 0.604 | AO66: 0.582 | AP66: 2.675 | AQ66: 1.697 | AR66: 1.076 | AS66: 0.741 | AT66: 1.046 | AU66: 1.085 | AV66: 0.42 | AW66: 0.751 | AX66: 1.582 | AY66: 1.679
B67: 2.548 | C67: 1.175 | D67: 1.059 | E67: 1.65 | F67: 0.714 | G67: 1.044 | H67: 1.17 | I67: 0.97 | J67: 1.103 | K67: 0.657 | L67: 1.019 | M67: 0.892 | N67: 1.183 | O67: 0.706 | P67: 0.792 | Q67: 0.499 | R67: 0.81 | S67: 2.23 | T67: 0.637 | U67: 1.083 | V67: 1.416 | W67: 0.816 | X67: 0.809 | Y67: 1.101 | Z67: 0.32 | AA67: 0.349 | AB67: 1.075 | AC67: 1.048 | AD67: 0.47 | AE67: 0.69 | AF67: 1.651 | AG67: 1.263 | AH67: 0.806 | AI67: 0.835 | AJ67: 1.282 | AK67: 1.0442 | AL67: 0.527 | AM67: 0.937 | AN67: 0.446 | AO67: 0.957 | AP67: 0.673 | AQ67: 0.784 | AR67: 2.152 | AS67: 1.043 | AT67: 0.807 | AU67: 1.209 | AV67: 1.006 | AW67: 2.181 | AX67: 0.932 | AY67: 1.017
B68: 1.114 | C68: 2.99 | D68: 0.294 | E68: 0.236 | F68: 2.438 | G68: 0.453 | H68: 1.599 | I68: 0.637 | J68: 1.412 | K68: 0.466 | L68: 0.384 | M68: 1.363 | N68: 2.014 | O68: 1.383 | P68: 2.287 | Q68: 1.459 | R68: 0.362 | S68: 0.429 | T68: 0.954 | U68: 1.4 | V68: 0.932 | W68: 0.988 | X68: 1.216 | Y68: 0.472 | Z68: 1.391 | AA68: 1.174 | AB68: 0.892 | AC68: 1.084 | AD68: 0.902 | AE68: 1.08 | AF68: 2.64 | AG68: 0.832 | AH68: 0.836 | AI68: 1.025 | AJ68: 1.016 | AK68: 1.604 | AL68: 1.673 | AM68: 0.771 | AN68: 1.048 | AO68: 0.613 | AP68: 1.166 | AQ68: 0.865 | AR68: 1.196 | AS68: 0.643 | AT68: 0.742 | AU68: 1.148 | AV68: 0.714 | AW68: 3.921 | AX68: 2.2781 | AY68: 1.888
B69: 1.331 | C69: 1.108 | D69: 0.934 | E69: 1.275 | F69: 1.797 | G69: 1.204 | H69: 1.057 | I69: 0.989 | J69: 1.361 | K69: 0.692 | L69: 1.408 | M69: 0.979 | N69: 0.808 | O69: 1.422 | P69: 0.922 | Q69: 0.64 | R69: 0.588 | S69: 0.837 | T69: 2.365 | U69: 1.344 | V69: 0.737 | W69: 1.04 | X69: 1.147 | Y69: 1.077 | Z69: 1.455 | AA69: 1.532 | AB69: 0.747 | AC69: 0.621 | AD69: 1.124 | AE69: 2.05 | AF69: 1.012 | AG69: 1.652 | AH69: 1.898 | AI69: 1.413 | AJ69: 1.369 | AK69: 1.402 | AL69: 0.701 | AM69: 0.94126 | AN69: 0.688 | AO69: 1.593 | AP69: 0.485 | AQ69: 1.239 | AR69: 0.497 | AS69: 0.729 | AT69: 1.365 | AU69: 1.059 | AV69: 2.342 | AW69: 0.892 | AX69: 0.713 | AY69: 2.924
B70: 0.402 | C70: 1.259 | D70: 0.631 | E70: 0.893 | F70: 1.345 | G70: 0.816 | H70: 1.828 | I70: 1.53 | J70: 0.467 | K70: 0.684 | L70: 0.998 | M70: 1.265 | N70: 0.793 | O70: 2.246 | P70: 1.625 | Q70: 1.009 | R70: 0.935 | S70: 1.051 | T70: 0.853 | U70: 0.546 | V70: 1.01 | W70: 1.418 | X70: 1.6127 | Y70: 0.718 | Z70: 0.886 | AA70: 2.232 | AB70: 1.6155 | AC70: 1.301 | AD70: 1.4 | AE70: 0.412 | AF70: 1.116 | AG70: 1.206 | AH70: 0.451 | AI70: 0.93 | AJ70: 1.199 | AK70: 0.39 | AL70: 0.743 | AM70: 0.683 | AN70: 1.045 | AO70: 0.345 | AP70: 0.992 | AQ70: 1.338 | AR70: 1.014 | AS70: 1.191 | AT70: 1.401 | AU70: 2.274 | AV70: 0.61 | AW70: 1.112 | AX70: 1.472 | AY70: 0.519
B71: 1.278 | C71: 0.342 | D71: 1.213 | E71: 1.134 | F71: 0.538 | G71: 1.158 | H71: 0.705 | I71: 1.214 | J71: 0.633 | K71: 0.888 | L71: 1.04 | M71: 0.87 | N71: 0.642 | O71: 1.775 | P71: 1.174 | Q71: 1.647 | R71: 2.589 | S71: 0.37 | T71: 0.633 | U71: 1.055 | V71: 0.914 | W71: 1.073 | X71: 0.62 | Y71: 0.652 | Z71: 0.838 | AA71: 2.143 | AB71: 1.209 | AC71: 1.569 | AD71: 0.796 | AE71: 0.923 | AF71: 1.42 | AG71: 1.407 | AH71: 1.562 | AI71: 1.089 | AJ71: 1.511 | AK71: 0.714 | AL71: 1.842 | AM71: 0.709 | AN71: 1.164 | AO71: 1.458 | AP71: 0.783 | AQ71: 0.727 | AR71: 1.229 | AS71: 0.661 | AT71: 1.054 | AU71: 1.009 | AV71: 0.575 | AW71: 0.719 | AX71: 2.191 | AY71: 1.228
B72: 3.971 | C72: 1.457 | D72: 0.693 | E72: 0.72 | F72: 0.898 | G72: 1.893 | H72: 1.652 | I72: 0.912 | J72: 0.868 | K72: 1.375 | L72: 6.1 | M72: 1.397 | N72: 2.567 | O72: 0.629 | P72: 0.827 | Q72: 1.151 | R72: 1.389 | S72: 0.758 | T72: 0.805 | U72: 2.353 | V72: 0.788 | W72: 0.913 | X72: 1.1497 | Y72: 0.882 | Z72: 1.431 | AA72: 1.686 | AB72: 1.19 | AC72: 0.851 | AD72: 0.815 | AE72: 2.232 | AF72: 1.48 | AG72: 1.208 | AH72: 1.067 | AI72: 0.837 | AJ72: 0.57011 | AK72: 0.494 | AL72: 2.222 | AM72: 0.974 | AN72: 0.971 | AO72: 0.774 | AP72: 0.508 | AQ72: 0.948 | AR72: 0.806 | AS72: 1.574 | AT72: 1.59 | AU72: 0.923 | AV72: 0.668 | AW72: 2.785 | AX72: 1.053 | AY72: 0.752
B73: 0.696 | C73: 1.038 | D73: 0.484 | E73: 0.839 | F73: 1.368 | G73: 0.777 | H73: 1.21 | I73: 0.426 | J73: 1.432 | K73: 1.2453 | L73: 0.853 | M73: 1.642 | N73: 1.709 | O73: 1.193 | P73: 0.973 | Q73: 0.846 | R73: 1.427 | S73: 2.173 | T73: 0.887 | U73: 1.298 | V73: 0.654 | W73: 2.144 | X73: 0.797 | Y73: 1.591 | Z73: 1.153 | AA73: 1.332 | AB73: 0.996 | AC73: 0.775 | AD73: 1.157 | AE73: 2.54 | AF73: 0.96 | AG73: 1.459 | AH73: 0.564 | AI73: 0.69 | AJ73: 0.828 | AK73: 1.032 | AL73: 2.849 | AM73: 1.351 | AN73: 0.879 | AO73: 1.153 | AP73: 1.289 | AQ73: 1.147 | AR73: 0.726 | AS73: 0.473 | AT73: 1.252 | AU73: 2.318 | AV73: 3.311 | AW73: 1.124 | AX73: 0.986 | AY73: 1.927
B74: 0.667 | C74: 0.509 | D74: 0.479 | E74: 3.22 | F74: 3.286 | G74: 0.679 | H74: 0.707 | I74: 2.186 | J74: 0.751 | K74: 2.485 | L74: 2.521 | M74: 0.971 | N74: 2.052 | O74: 1.631 | P74: 1.655 | Q74: 0.952 | R74: 1.538 | S74: 3.529 | T74: 1.067 | U74: 1.762 | V74: 1.596 | W74: 3.228 | X74: 0.7 | Y74: 0.581 | Z74: 1.743 | AA74: 1.592 | AB74: 1.472 | AC74: 0.84 | AD74: 1.258 | AE74: 0.918 | AF74: 0.825 | AG74: 1.423 | AH74: 1.341 | AI74: 0.682 | AJ74: 0.975 | AK74: 0.687 | AL74: 2.262 | AM74: 0.62 | AN74: 1.002 | AO74: 0.555 | AP74: 1.053 | AQ74: 2.513 | AR74: 3.669 | AS74: 1.244 | AT74: 2.576 | AU74: 0.453 | AV74: 0.942 | AW74: 1.245 | AX74: 2.661 | AY74: 0.861
B75: 1.818 | C75: 2.412 | D75: 1.757 | E75: 1.469 | F75: 0.986 | G75: 0.858 | H75: 2.86 | I75: 1.495 | J75: 2.95 | K75: 0.987 | L75: 1.332 | M75: 2.134 | N75: 1.834 | O75: 1.183 | P75: 1.866 | Q75: 0.755 | R75: 1.061 | S75: 3.12 | T75: 0.435 | U75: 1.49 | V75: 1.476 | W75: 0.63 | X75: 0.665 | Y75: 1.778 | Z75: 3.19 | AA75: 0.407 | AB75: 1.937 | AC75: 0.496 | AD75: 1.649 | AE75: 0.898 | AF75: 2.089 | AG75: 0.688 | AH75: 0.55 | AI75: 3.043 | AJ75: 0.928 | AK75: 0.508 | AL75: 1.265 | AM75: 0.891 | AN75: 1.421 | AO75: 1.115 | AP75: 0.45 | AQ75: 0.917 | AR75: 3.216 | AS75: 0.906 | AT75: 0.942 | AU75: 1.125 | AV75: 0.327 | AW75: 2.323 | AX75: 0.748 | AY75: 1.776
B76: 0.48442 | C76: 1.388 | D76: 1.432 | E76: 0.741 | F76: 1.626 | G76: 0.813 | H76: 0.898 | I76: 0.704 | J76: 1.923 | K76: 0.588 | L76: 1.307 | M76: 1.2263 | N76: 1.202 | O76: 0.92594 | P76: 0.729 | Q76: 1.342 | R76: 1.264 | S76: 0.998 | T76: 0.691 | U76: 1.948 | V76: 0.515 | W76: 0.986 | X76: 3.3 | Y76: 1.251 | Z76: 2.267 | AA76: 1.428 | AB76: 1.891 | AC76: 1.29 | AD76: 0.72 | AE76: 2.076 | AF76: 0.785 | AG76: 0.565 | AH76: 1.062 | AI76: 1.203 | AJ76: 1.252 | AK76: 0.995 | AL76: 1.588 | AM76: 2.088 | AN76: 1.263 | AO76: 0.492 | AP76: 0.808 | AQ76: 1.18 | AR76: 1.71 | AS76: 0.605 | AT76: 0.596 | AU76: 0.995 | AV76: 1.352 | AW76: 1.946 | AX76: 0.656 | AY76: 0.772
B77: 1.528 | C77: 0.898 | D77: 2.5 | E77: 1.72 | F77: 1.064 | G77: 3.38 | H77: 1.591 | I77: 1.037 | J77: 1.216 | K77: 2.213 | L77: 0.603 | M77: 1.029 | N77: 1.632 | O77: 1.963 | P77: 1.407 | Q77: 1.776 | R77: 1.46 | S77: 1.045 | T77: 0.84 | U77: 1.282 | V77: 1.149 | W77: 3.015 | X77: 2.413 | Y77: 0.598 | Z77: 1.038 | AA77: 0.726 | AB77: 0.976 | AC77: 0.782 | AD77: 0.818 | AE77: 0.566 | AF77: 0.867 | AG77: 1.313 | AH77: 0.839 | AI77: 1.753 | AJ77: 1.188 | AK77: 0.804 | AL77: 0.413 | AM77: 1.414 | AN77: 0.966 | AO77: 1.131 | AP77: 0.95 | AQ77: 1.252 | AR77: 2.208 | AS77: 2.677 | AT77: 1.1507 | AU77: 0.659 | AV77: 0.852 | AW77: 1.144 | AX77: 2.517 | AY77: 1.567
B78: 1.064 | C78: 1.223 | D78: 0.435 | E78: 0.765 | F78: 2.46 | G78: 0.54 | H78: 0.934 | I78: 1.038 | J78: 0.858 | K78: 0.558 | L78: 0.602 | M78: 0.81 | N78: 1.29 | O78: 1.584 | P78: 0.823 | Q78: 0.567 | R78: 1.213 | S78: 1.109 | T78: 1.14 | U78: 0.825 | V78: 0.406 | W78: 1.182 | X78: 0.826 | Y78: 2.854 | Z78: 3.702 | AA78: 0.838 | AB78: 1.137 | AC78: 0.953 | AD78: 1.009 | AE78: 1.872 | AF78: 0.833 | AG78: 1.27 | AH78: 0.855 | AI78: 0.973 | AJ78: 1.605 | AK78: 1.024 | AL78: 0.366 | AM78: 1.207 | AN78: 1.163 | AO78: 1.4252 | AP78: 3.12 | AQ78: 1.232 | AR78: 1.753 | AS78: 0.993 | AT78: 1.429 | AU78: 0.767 | AV78: 1.213 | AW78: 0.553 | AX78: 1.713 | AY78: 1.755
B79: 0.916 | C79: 1.247 | D79: 2.16 | E79: 1.106 | F79: 1.294 | G79: 3.248 | H79: 2.715 | I79: 2.045 | J79: 0.94 | K79: 0.295 | L79: 1.319 | M79: 1.592 | N79: 1.703 | O79: 0.693 | P79: 0.676 | Q79: 1.054 | R79: 0.488 | S79: 0.594 | T79: 0.449 | U79: 0.995 | V79: 1.609 | W79: 1.826 | X79: 0.415 | Y79: 0.991 | Z79: 1.473 | AA79: 1.296 | AB79: 1.008 | AC79: 1.0533 | AD79: 0.87 | AE79: 0.892 | AF79: 0.922 | AG79: 0.776 | AH79: 0.835 | AI79: 1.361 | AJ79: 0.92 | AK79: 1.155 | AL79: 1.36 | AM79: 0.66 | AN79: 0.494 | AO79: 1.381 | AP79: 0.912 | AQ79: 2.01 | AR79: 1.306 | AS79: 1.18 | AT79: 1.271 | AU79: 1.0894 | AV79: 0.7 | AW79: 2.103 | AX79: 0.966 | AY79: 0.888
B80: 0.584 | C80: 1.006 | D80: 0.957 | E80: 0.995 | F80: 1.304 | G80: 1.517 | H80: 1.914 | I80: 1.652 | J80: 1.301 | K80: 1.353 | L80: 0.952 | M80: 0.986 | N80: 3.357 | O80: 1.27 | P80: 0.958 | Q80: 2.557 | R80: 0.654 | S80: 1.251 | T80: 1.603 | U80: 1.562 | V80: 1.17 | W80: 1.204 | X80: 0.737 | Y80: 1.496 | Z80: 1.264 | AA80: 1.867 | AB80: 1.017 | AC80: 0.635 | AD80: 2.016 | AE80: 1.7 | AF80: 1.109 | AG80: 1.386 | AH80: 1.762 | AI80: 1.029 | AJ80: 2.273 | AK80: 0.826 | AL80: 0.99 | AM80: 0.919 | AN80: 0.688 | AO80: 0.682 | AP80: 0.924 | AQ80: 0.369 | AR80: 1.142 | AS80: 1.127 | AT80: 1.628 | AU80: 0.813 | AV80: 0.78 | AW80: 1.454 | AX80: 0.976 | AY80: 0.508
B81: 1.008 | C81: 0.944 | D81: 0.842 | E81: 0.715 | F81: 0.711 | G81: 0.554 | H81: 2.387 | I81: 1.111 | J81: 0.92 | K81: 0.664 | L81: 1.401 | M81: 1.144 | N81: 0.558 | O81: 2.386 | P81: 2.335 | Q81: 1.054 | R81: 2.033 | S81: 1.09 | T81: 1.332 | U81: 1.103 | V81: 0.467 | W81: 0.759 | X81: 1.74 | Y81: 1.868 | Z81: 2.04 | AA81: 2.442 | AB81: 0.753 | AC81: 1.412 | AD81: 0.931 | AE81: 2.553 | AF81: 0.674 | AG81: 0.757 | AH81: 1.16 | AI81: 1.15 | AJ81: 1.228 | AK81: 0.807 | AL81: 0.664 | AM81: 1.169 | AN81: 1.478 | AO81: 0.602 | AP81: 1.026 | AQ81: 0.834 | AR81: 0.632 | AS81: 0.941 | AT81: 0.929 | AU81: 2.111 | AV81: 1.185 | AW81: 0.972 | AX81: 1.99 | AY81: 0.833
B82: 2.071 | C82: 1.17 | D82: 0.657 | E82: 0.833 | F82: 1.071 | G82: 1.188 | H82: 0.291 | I82: 0.957 | J82: 1.368 | K82: 0.93 | L82: 1.28 | M82: 2.858 | N82: 0.935 | O82: 0.844 | P82: 2.403 | Q82: 1.888 | R82: 1.034 | S82: 0.742 | T82: 4.4 | U82: 1.365 | V82: 1.637 | W82: 1.086 | X82: 1.664 | Y82: 0.787 | Z82: 1.173 | AA82: 0.703 | AB82: 1.165 | AC82: 2.327 | AD82: 2.0739 | AE82: 0.511 | AF82: 0.688 | AG82: 1.316 | AH82: 0.45 | AI82: 0.987 | AJ82: 1.03 | AK82: 1.785 | AL82: 2.0712 | AM82: 1.045 | AN82: 0.749 | AO82: 0.854 | AP82: 1.795 | AQ82: 0.904 | AR82: 0.949 | AS82: 0.828 | AT82: 1.603 | AU82: 0.609 | AV82: 1.378 | AW82: 0.363 | AX82: 1.414 | AY82: 0.478
B83: 0.86397 | C83: 0.92 | D83: 0.852 | E83: 0.532 | F83: 0.705 | G83: 1.024 | H83: 0.804 | I83: 1.353 | J83: 1.318 | K83: 1.194 | L83: 2.118 | M83: 0.957 | N83: 0.336 | O83: 0.73 | P83: 0.639 | Q83: 0.584 | R83: 0.813 | S83: 1.201 | T83: 2.341 | U83: 1.768 | V83: 1.07 | W83: 0.725 | X83: 1.762 | Y83: 0.79313 | Z83: 0.823 | AA83: 0.428 | AB83: 0.829 | AC83: 0.825 | AD83: 3.071 | AE83: 1.278 | AF83: 0.787 | AG83: 2.733 | AH83: 1.099 | AI83: 0.986 | AJ83: 1.912 | AK83: 0.938 | AL83: 0.448 | AM83: 0.835 | AN83: 0.896 | AO83: 1.107 | AP83: 1.019 | AQ83: 3.024 | AR83: 1.71 | AS83: 0.884 | AT83: 1.41 | AU83: 1.235 | AV83: 1.067 | AW83: 0.42 | AX83: 1.06 | AY83: 0.416
B84: 0.481 | C84: 1.069 | D84: 2.8055 | E84: 2.569 | F84: 1.388 | G84: 1.318 | H84: 0.71 | I84: 0.824 | J84: 0.359 | K84: 1.131 | L84: 0.879 | M84: 1.308 | N84: 0.769 | O84: 0.597 | P84: 0.27 | Q84: 0.866 | R84: 1.123 | S84: 0.599 | T84: 1.181 | U84: 1.37 | V84: 0.993 | W84: 1.153 | X84: 1.858 | Y84: 1.011 | Z84: 1.456 | AA84: 0.911 | AB84: 2.032 | AC84: 0.627 | AD84: 0.534 | AE84: 1.201 | AF84: 1.725 | AG84: 1.179 | AH84: 0.674 | AI84: 1.428 | AJ84: 0.547 | AK84: 1.596 | AL84: 2.28 | AM84: 0.844 | AN84: 0.814 | AO84: 1.58 | AP84: 0.982 | AQ84: 1.218 | AR84: 1.094 | AS84: 1.064 | AT84: 0.54 | AU84: 0.914 | AV84: 0.829 | AW84: 0.582 | AX84: 2.24 | AY84: 0.58
B85: 1.223 | C85: 1.538 | D85: 1.529 | E85: 0.637 | F85: 1.645 | G85: 0.717 | H85: 2.8 | I85: 0.733 | J85: 1.279 | K85: 0.713 | L85: 0.216 | M85: 0.473 | N85: 0.471 | O85: 2.871 | P85: 1.203 | Q85: 1.166 | R85: 2.769 | S85: 1.002 | T85: 2.787 | U85: 0.48 | V85: 1.279 | W85: 0.749 | X85: 1.027 | Y85: 0.559 | Z85: 1.379 | AA85: 1.043 | AB85: 1.167 | AC85: 1.301 | AD85: 2.211 | AE85: 2.127 | AF85: 1.205 | AG85: 1.044 | AH85: 0.748 | AI85: 1.638 | AJ85: 0.484 | AK85: 1.067 | AL85: 1.01 | AM85: 1.702 | AN85: 1.408 | AO85: 2.251 | AP85: 1.22 | AQ85: 5.1 | AR85: 0.53 | AS85: 1.888 | AT85: 1.861 | AU85: 0.841 | AV85: 1.186 | AW85: 1.459 | AX85: 0.983 | AY85: 0.664
B86: 0.964 | C86: 2.386 | D86: 1.362 | E86: 0.9 | F86: 0.79 | G86: 1.243 | H86: 1.467 | I86: 0.412 | J86: 1.541 | K86: 0.582 | L86: 0.943 | M86: 1.752 | N86: 1.074 | O86: 1.628 | P86: 2.273 | Q86: 2.549 | R86: 1.425 | S86: 2.647 | T86: 0.883 | U86: 0.971 | V86: 1.8 | W86: 1.056 | X86: 0.69 | Y86: 1.287 | Z86: 1.309 | AA86: 1.136 | AB86: 1.395 | AC86: 3.205 | AD86: 1.061 | AE86: 1.6534 | AF86: 0.533 | AG86: 2.3133 | AH86: 3.067 | AI86: 0.388 | AJ86: 1.21 | AK86: 1.534 | AL86: 0.776 | AM86: 2.251 | AN86: 0.948 | AO86: 0.374 | AP86: 1.887 | AQ86: 1.13 | AR86: 0.671 | AS86: 1.356 | AT86: 1.013 | AU86: 2.182 | AV86: 1.044 | AW86: 1.339 | AX86: 1.464 | AY86: 1.366
B87: 1.582 | C87: 0.558 | D87: 1.011 | E87: 1.074 | F87: 0.586 | G87: 0.845 | H87: 0.584 | I87: 1.042 | J87: 1.164 | K87: 0.899 | L87: 1.124 | M87: 1.609 | N87: 1.176 | O87: 0.505 | P87: 1.105 | Q87: 1.455 | R87: 0.982 | S87: 0.861 | T87: 0.788 | U87: 0.796 | V87: 1.036 | W87: 0.689 | X87: 1.662 | Y87: 1.387 | Z87: 1.483 | AA87: 1.104 | AB87: 0.735 | AC87: 2.2813 | AD87: 1.105 | AE87: 2.306 | AF87: 0.566 | AG87: 1.826 | AH87: 0.684 | AI87: 0.545 | AJ87: 1.785 | AK87: 2.495 | AL87: 0.889 | AM87: 0.921 | AN87: 0.54 | AO87: 0.643 | AP87: 2.889 | AQ87: 0.715 | AR87: 1.317 | AS87: 1.673 | AT87: 0.919 | AU87: 0.693 | AV87: 1.806 | AW87: 3.353 | AX87: 1.16 | AY87: 0.926
B88: 2.381 | C88: 1.558 | D88: 0.663 | E88: 1.461 | F88: 1.642 | G88: 0.524 | H88: 0.443 | I88: 1.637 | J88: 0.768 | K88: 0.257 | L88: 1.181 | M88: 1.652 | N88: 2.845 | O88: 0.887 | P88: 0.789 | Q88: 1.547 | R88: 0.68 | S88: 1.191 | T88: 3.038 | U88: 0.625 | V88: 0.791 | W88: 1.621 | X88: 0.523 | Y88: 1.414 | Z88: 0.94 | AA88: 0.444 | AB88: 1.138 | AC88: 0.61 | AD88: 0.93 | AE88: 0.326 | AF88: 1.11 | AG88: 0.697 | AH88: 3.772 | AI88: 2.612 | AJ88: 0.713 | AK88: 0.827 | AL88: 1.114 | AM88: 0.536 | AN88: 0.722 | AO88: 1.2749 | AP88: 0.987 | AQ88: 2.086 | AR88: 1.353 | AS88: 0.517 | AT88: 1.759 | AU88: 0.856 | AV88: 0.788 | AW88: 1.063 | AX88: 0.655 | AY88: 0.894
B89: 2.215 | C89: 0.584 | D89: 0.457 | E89: 0.908 | F89: 1.296 | G89: 1.239 | H89: 1.373 | I89: 0.586 | J89: 2.508 | K89: 1.396 | L89: 0.929 | M89: 2.052 | N89: 0.343 | O89: 1.2154 | P89: 0.247 | Q89: 1.712 | R89: 1.894 | S89: 2.2 | T89: 2.562 | U89: 0.71 | V89: 1.156 | W89: 1.43 | X89: 0.665 | Y89: 1.589 | Z89: 0.315 | AA89: 0.654 | AB89: 1.5766 | AC89: 0.439 | AD89: 1.01 | AE89: 1.057 | AF89: 1.264 | AG89: 1.011 | AH89: 0.542 | AI89: 1.137 | AJ89: 1.188 | AK89: 0.901 | AL89: 3.8 | AM89: 1.092 | AN89: 1.424 | AO89: 2.82 | AP89: 1.849 | AQ89: 1.105 | AR89: 1.356 | AS89: 1.181 | AT89: 1.506 | AU89: 0.919 | AV89: 2.303 | AW89: 0.659 | AX89: 0.762 | AY89: 2.119
B90: 0.619 | C90: 0.655 | D90: 1.299 | E90: 1.279 | F90: 0.631 | G90: 1.79 | H90: 1.362 | I90: 1.027 | J90: 1.111 | K90: 2.059 | L90: 1.046 | M90: 0.896 | N90: 1.285 | O90: 1.627 | P90: 1.083 | Q90: 1.995 | R90: 1.011 | S90: 0.799 | T90: 0.928 | U90: 1.473 | V90: 0.522 | W90: 0.615 | X90: 1.254 | Y90: 1.936 | Z90: 1.261 | AA90: 0.866 | AB90: 0.685 | AC90: 1.03 | AD90: 1.292 | AE90: 0.828 | AF90: 2.341 | AG90: 0.888 | AH90: 0.846 | AI90: 1.761 | AJ90: 0.944 | AK90: 0.592 | AL90: 0.709 | AM90: 0.782 | AN90: 1.078 | AO90: 1.558 | AP90: 0.793 | AQ90: 1.106 | AR90: 0.52 | AS90: 2.097 | AT90: 1.062 | AU90: 1.187 | AV90: 1.144 | AW90: 0.723 | AX90: 0.609 | AY90: 1.515
B91: 1.571 | C91: 0.531 | D91: 1.116 | E91: 0.987 | F91: 0.513 | G91: 2.402 | H91: 1.407 | I91: 1.336 | J91: 1.23 | K91: 0.861 | L91: 0.354 | M91: 1.444 | N91: 1.586 | O91: 1.414 | P91: 1.601 | Q91: 0.833 | R91: 0.56 | S91: 1.645 | T91: 1.014 | U91: 1.232 | V91: 1.82 | W91: 0.846 | X91: 0.711 | Y91: 0.943 | Z91: 0.979 | AA91: 1.493 | AB91: 1.612 | AC91: 0.565 | AD91: 0.744 | AE91: 1.756 | AF91: 1.5694 | AG91: 1.17 | AH91: 2.126 | AI91: 1.75 | AJ91: 0.809 | AK91: 0.915 | AL91: 0.766 | AM91: 2.015 | AN91: 1.501 | AO91: 2 | AP91: 1.206 | AQ91: 0.54 | AR91: 0.99 | AS91: 0.656 | AT91: 0.725 | AU91: 0.665 | AV91: 0.95 | AW91: 0.745 | AX91: 0.865 | AY91: 0.659
B92: 0.895 | C92: 0.636 | D92: 1.309 | E92: 1.406 | F92: 0.712 | G92: 1.247 | H92: 0.983 | I92: 0.791 | J92: 0.767 | K92: 1.3 | L92: 0.591 | M92: 1.035 | N92: 0.596 | O92: 2.14 | P92: 0.817 | Q92: 1.848 | R92: 2.191 | S92: 0.638 | T92: 1.129 | U92: 0.54 | V92: 1.526 | W92: 0.349 | X92: 1.076 | Y92: 0.358 | Z92: 2.479 | AA92: 0.976 | AB92: 1.431 | AC92: 1.721 | AD92: 0.962 | AE92: 0.612 | AF92: 0.649 | AG92: 1.655 | AH92: 0.641 | AI92: 1.028 | AJ92: 2.984 | AK92: 0.737 | AL92: 0.95 | AM92: 0.614 | AN92: 0.74 | AO92: 1.018 | AP92: 1.046 | AQ92: 0.78 | AR92: 1.029 | AS92: 0.432 | AT92: 2.012 | AU92: 1.547 | AV92: 1.926 | AW92: 1.916 | AX92: 1.249 | AY92: 0.943
B93: 0.703 | C93: 0.459 | D93: 1.362 | E93: 1.256 | F93: 0.851 | G93: 2.591 | H93: 0.821 | I93: 0.817 | J93: 1.065 | K93: 1.128 | L93: 1.026 | M93: 1.019 | N93: 1.055 | O93: 1.263 | P93: 0.589 | Q93: 0.971 | R93: 1.136 | S93: 1.124 | T93: 1.193 | U93: 0.942 | V93: 1.069 | W93: 0.896 | X93: 1.279 | Y93: 0.614 | Z93: 3.598 | AA93: 1.891 | AB93: 1.649 | AC93: 0.953 | AD93: 1.716 | AE93: 1.282 | AF93: 1.481 | AG93: 0.864 | AH93: 1.072 | AI93: 0.828 | AJ93: 2.085 | AK93: 1.219 | AL93: 1.371 | AM93: 0.904 | AN93: 0.793 | AO93: 2.127 | AP93: 1.037 | AQ93: 1.379 | AR93: 0.44 | AS93: 0.568 | AT93: 0.498 | AU93: 2.646 | AV93: 1.566 | AW93: 2.66 | AX93: 0.418 | AY93: 0.977
B94: 0.886 | C94: 1.278 | D94: 0.949 | E94: 1.061 | F94: 1.855 | G94: 0.94 | H94: 0.571 | I94: 2.136 | J94: 0.935 | K94: 0.69 | L94: 1.616 | M94: 0.706 | N94: 0.451 | O94: 1.071 | P94: 1.284 | Q94: 1.015 | R94: 0.667 | S94: 0.713 | T94: 1.344 | U94: 0.778 | V94: 1.252 | W94: 3.012 | X94: 0.656 | Y94: 0.617 | Z94: 1.153 | AA94: 1.6712 | AB94: 0.624 | AC94: 1.289 | AD94: 1.128 | AE94: 0.971 | AF94: 0.859 | AG94: 1.162 | AH94: 0.831 | AI94: 0.242 | AJ94: 1.193 | AK94: 0.733 | AL94: 0.863 | AM94: 1.008 | AN94: 1.274 | AO94: 0.643 | AP94: 2.366 | AQ94: 0.687 | AR94: 0.838 | AS94: 1.204 | AT94: 0.588 | AU94: 0.63 | AV94: 0.558 | AW94: 1.377 | AX94: 2.776 | AY94: 1.392
B95: 1.415 | C95: 1.6788 | D95: 1.662 | E95: 0.86 | F95: 0.92 | G95: 1.33 | H95: 0.479 | I95: 0.622 | J95: 0.386 | K95: 0.78 | L95: 0.655 | M95: 0.811 | N95: 1.339 | O95: 1.024 | P95: 1.307 | Q95: 0.565 | R95: 0.531 | S95: 0.458 | T95: 0.417 | U95: 3.26 | V95: 1.075 | W95: 2.206 | X95: 1.932 | Y95: 2.368 | Z95: 1.672 | AA95: 1.054 | AB95: 1.324 | AC95: 0.481 | AD95: 2.531 | AE95: 2.038 | AF95: 1.167 | AG95: 0.786 | AH95: 0.718 | AI95: 1.904 | AJ95: 0.281 | AK95: 2.379 | AL95: 1.292 | AM95: 0.918 | AN95: 1.019 | AO95: 1.257 | AP95: 1.726 | AQ95: 1.128 | AR95: 0.6 | AS95: 0.954 | AT95: 1.433 | AU95: 1.747 | AV95: 2.026 | AW95: 0.953 | AX95: 1.65 | AY95: 0.742
B96: 2.364 | C96: 0.678 | D96: 0.615 | E96: 1.552 | F96: 1.066 | G96: 0.704 | H96: 1.112 | I96: 0.979 | J96: 0.954 | K96: 0.918 | L96: 0.724 | M96: 0.701 | N96: 0.869 | O96: 0.397 | P96: 0.669 | Q96: 0.945 | R96: 0.771 | S96: 4.162 | T96: 0.399 | U96: 1.509 | V96: 0.717 | W96: 2.635 | X96: 0.466 | Y96: 1.231 | Z96: 2.442 | AA96: 0.858 | AB96: 1.817 | AC96: 0.481 | AD96: 0.711 | AE96: 1.092 | AF96: 1.192 | AG96: 2.328 | AH96: 1.549 | AI96: 0.422 | AJ96: 0.767 | AK96: 1.226 | AL96: 1.749 | AM96: 0.544 | AN96: 0.387 | AO96: 0.666 | AP96: 1.637 | AQ96: 0.823 | AR96: 0.936 | AS96: 2.159 | AT96: 0.323 | AU96: 1.124 | AV96: 1.409 | AW96: 1.734 | AX96: 1.716 | AY96: 1.6614
B97: 0.683 | C97: 1.011 | D97: 2.249 | E97: 0.922 | F97: 0.726 | G97: 2.947 | H97: 0.403 | I97: 2.785 | J97: 1.13 | K97: 0.995 | L97: 1.409 | M97: 0.618 | N97: 0.413 | O97: 0.433 | P97: 0.621 | Q97: 2.131 | R97: 0.859 | S97: 1.63 | T97: 0.501 | U97: 2.385 | V97: 0.833 | W97: 1.009 | X97: 0.408 | Y97: 1.283 | Z97: 0.92 | AA97: 1.024 | AB97: 0.657 | AC97: 1.128 | AD97: 0.92417 | AE97: 2.255 | AF97: 0.435 | AG97: 0.595 | AH97: 1.021 | AI97: 0.813 | AJ97: 1.187 | AK97: 0.938 | AL97: 0.527 | AM97: 0.833 | AN97: 1.278 | AO97: 0.747 | AP97: 1.026 | AQ97: 1.4887 | AR97: 0.974 | AS97: 2.309 | AT97: 1.884 | AU97: 0.946 | AV97: 1.029 | AW97: 0.354 | AX97: 0.935 | AY97: 1.748
B98: 1.114 | C98: 0.537 | D98: 1.554 | E98: 0.619 | F98: 1.31 | G98: 1.307 | H98: 2.407 | I98: 1.764 | J98: 3.017 | K98: 0.482 | L98: 0.422 | M98: 0.589 | N98: 1.412 | O98: 0.773 | P98: 0.9 | Q98: 0.589 | R98: 0.672 | S98: 0.732 | T98: 0.519 | U98: 0.51 | V98: 0.895 | W98: 0.788 | X98: 0.9 | Y98: 0.987 | Z98: 1.077 | AA98: 0.43 | AB98: 1.23 | AC98: 0.252 | AD98: 1.215 | AE98: 0.349 | AF98: 1.02 | AG98: 1.062 | AH98: 1.195 | AI98: 0.605 | AJ98: 1.656 | AK98: 0.873 | AL98: 0.903 | AM98: 2.5553 | AN98: 1.616 | AO98: 1.174 | AP98: 1.804 | AQ98: 1.593 | AR98: 1.923 | AS98: 0.947 | AT98: 0.568 | AU98: 2.702 | AV98: 0.365 | AW98: 2.603 | AX98: 0.733 | AY98: 0.826
B99: 1.51 | C99: 1.488 | D99: 1.377 | E99: 0.739 | F99: 2.524 | G99: 0.696 | H99: 0.982 | I99: 1.086 | J99: 0.657 | K99: 2.047 | L99: 0.845 | M99: 0.706 | N99: 1.404 | O99: 1.109 | P99: 1.308 | Q99: 1.569 | R99: 2.01 | S99: 0.777 | T99: 2.538 | U99: 1.775 | V99: 0.927 | W99: 0.987 | X99: 1.676 | Y99: 0.694 | Z99: 1.846 | AA99: 2.7 | AB99: 1.638 | AC99: 1.043 | AD99: 2.399 | AE99: 0.393 | AF99: 0.833 | AG99: 0.748 | AH99: 0.726 | AI99: 0.571 | AJ99: 0.75095 | AK99: 1.441 | AL99: 0.577 | AM99: 0.663 | AN99: 1.291 | AO99: 1.041 | AP99: 0.883 | AQ99: 1.4628 | AR99: 1.833 | AS99: 0.994 | AT99: 0.657 | AU99: 0.442 | AV99: 0.297 | AW99: 1.121 | AX99: 0.569 | AY99: 0.893
B100: 0.871 | C100: 0.428 | D100: 1.397 | E100: 0.868 | F100: 0.867 | G100: 0.745 | H100: 1.409 | I100: 1.026 | J100: 0.887 | K100: 1.038 | L100: 1.007 | M100: 0.942 | N100: 1.336 | O100: 1.247 | P100: 1.674 | Q100: 0.896 | R100: 1.356 | S100: 1.394 | T100: 1.194 | U100: 0.78 | V100: 1.498 | W100: 3.045 | X100: 0.381 | Y100: 1.431 | Z100: 0.404 | AA100: 1.279 | AB100: 0.869 | AC100: 1.256 | AD100: 1.49 | AE100: 0.613 | AF100: 0.353 | AG100: 2.799 | AH100: 1.015 | AI100: 0.568 | AJ100: 1.474 | AK100: 0.538 | AL100: 2.794 | AM100: 0.906 | AN100: 0.941 | AO100: 1.895 | AP100: 0.758 | AQ100: 1.68 | AR100: 1.978 | AS100: 0.809 | AT100: 1.21 | AU100: 1.85 | AV100: 1.101 | AW100: 0.757 | AX100: 2.457 | AY100: 1.216
B101: 0.872 | C101: 1.092 | D101: 1.446 | E101: 0.618 | F101: 0.672 | G101: 2.41 | H101: 1.415 | I101: 0.729 | J101: 1.033 | K101: 1.439 | L101: 0.777 | M101: 0.535 | N101: 1.011 | O101: 0.619 | P101: 0.488 | Q101: 0.457 | R101: 0.882 | S101: 0.489 | T101: 1.343 | U101: 0.466 | V101: 0.887 | W101: 2.184 | X101: 0.853 | Y101: 0.578 | Z101: 1.22 | AA101: 0.95 | AB101: 1.287 | AC101: 1.078 | AD101: 0.994 | AE101: 0.522 | AF101: 1.029 | AG101: 2.812 | AH101: 0.712 | AI101: 1.214 | AJ101: 1.7548 | AK101: 1.243 | AL101: 1.345 | AM101: 1.397 | AN101: 1.778 | AO101: 1.174 | AP101: 2.647 | AQ101: 2.476 | AR101: 1.164 | AS101: 1.501 | AT101: 1.897 | AU101: 1.037 | AV101: 0.762 | AW101: 0.587 | AX101: 0.387 | AY101: 1.191
B102: 1.418 | C102: 2.869 | D102: 1.038 | E102: 1.4301 | F102: 0.791 | G102: 1.996 | H102: 1.179 | I102: 2.173 | J102: 2.511 | K102: 0.439 | L102: 0.899 | M102: 0.498 | N102: 1.199 | O102: 0.843 | P102: 1.257 | Q102: 0.937 | R102: 1.9309 | S102: 1.913 | T102: 1.254 | U102: 0.571 | V102: 1.668 | W102: 0.665 | X102: 1.2545 | Y102: 0.687 | Z102: 2.832 | AA102: 0.956 | AB102: 0.808 | AC102: 0.426 | AD102: 0.591 | AE102: 1.181 | AF102: 0.877 | AG102: 1.175 | AH102: 0.956 | AI102: 1.217 | AJ102: 0.908 | AK102: 1.236 | AL102: 0.835 | AM102: 0.528 | AN102: 0.613 | AO102: 1.001 | AP102: 1.172 | AQ102: 0.597 | AR102: 1.057 | AS102: 0.974 | AT102: 2.116 | AU102: 0.639 | AV102: 1.06 | AW102: 1.151 | AX102: 1.338 | AY102: 0.44082
B103: 1.201 | C103: 0.705 | D103: 1.841 | E103: 1.25 | F103: 0.839 | G103: 0.803 | H103: 0.682 | I103: 1.977 | J103: 0.678 | K103: 1.459 | L103: 2.068 | M103: 1.016 | N103: 1.141 | O103: 1.253 | P103: 0.749 | Q103: 1.485 | R103: 2.092 | S103: 1.066 | T103: 1.006 | U103: 0.96 | V103: 1.42 | W103: 0.413 | X103: 0.762 | Y103: 0.67 | Z103: 1.05 | AA103: 1.476 | AB103: 2.393 | AC103: 1.561 | AD103: 0.413 | AE103: 0.884 | AF103: 0.918 | AG103: 0.434 | AH103: 0.698 | AI103: 1.028 | AJ103: 0.778 | AK103: 1.398 | AL103: 1.502 | AM103: 0.485 | AN103: 1.166 | AO103: 0.664 | AP103: 1.316 | AQ103: 0.712 | AR103: 1.506 | AS103: 1.226 | AT103: 0.469 | AU103: 1.084 | AV103: 0.93 | AW103: 0.623 | AX103: 0.97 | AY103: 1.279
B104: 0.899 | C104: 0.528 | D104: 0.979 | E104: 2.07 | F104: 1.419 | G104: 0.946 | H104: 0.907 | I104: 0.741 | J104: 0.858 | K104: 0.977 | L104: 1.683 | M104: 0.499 | N104: 1.075 | O104: 1.08 | P104: 0.927 | Q104: 0.982 | R104: 0.994 | S104: 1.258 | T104: 0.941 | U104: 0.254 | V104: 0.311 | W104: 1.07 | X104: 1.254 | Y104: 0.817 | Z104: 1.454 | AA104: 0.83 | AB104: 0.846 | AC104: 0.906 | AD104: 0.939 | AE104: 1.093 | AF104: 1.2421 | AG104: 2.116 | AH104: 3.068 | AI104: 1 | AJ104: 0.586 | AK104: 0.675 | AL104: 1.046 | AM104: 2.971 | AN104: 1.468 | AO104: 0.964 | AP104: 0.736 | AQ104: 1.1211 | AR104: 0.56 | AS104: 0.688 | AT104: 0.512 | AU104: 1.372 | AV104: 1.22 | AW104: 0.849 | AX104: 0.862 | AY104: 3.18
B105: 0.244 | C105: 2.772 | D105: 1.379 | E105: 1.1862 | F105: 1.129 | G105: 0.676 | H105: 0.93 | I105: 0.429 | J105: 2.183 | K105: 1.306 | L105: 0.474 | M105: 1.512 | N105: 1.14 | O105: 2.015 | P105: 0.476 | Q105: 1.365 | R105: 1.05 | S105: 0.77 | T105: 1.253 | U105: 1.313 | V105: 1.069 | W105: 0.965 | X105: 1.019 | Y105: 1.282 | Z105: 1.112 | AA105: 1.101 | AB105: 0.825 | AC105: 0.957 | AD105: 1.385 | AE105: 1.186 | AF105: 2.084 | AG105: 0.519 | AH105: 1.289 | AI105: 0.721 | AJ105: 1.031 | AK105: 1.224 | AL105: 1.568 | AM105: 1.163 | AN105: 1.359 | AO105: 0.758 | AP105: 1.126 | AQ105: 1.19 | AR105: 1.698 | AS105: 1.436 | AT105: 2.041 | AU105: 1.011 | AV105: 1.477 | AW105: 0.784 | AX105: 1.428 | AY105: 0.817
B106: 0.907 | C106: 1.091 | D106: 2.269 | E106: 1.037 | F106: 1.847 | G106: 1.89 | H106: 1.007 | I106: 1.329 | J106: 0.761 | K106: 0.897 | L106: 0.481 | M106: 1.513 | N106: 0.678 | O106: 0.507 | P106: 0.913 | Q106: 1.125 | R106: 0.811 | S106: 2.851 | T106: 2.267 | U106: 0.957 | V106: 2.176 | W106: 1.383 | X106: 1.695 | Y106: 0.971 | Z106: 1.07 | AA106: 2.353 | AB106: 1.87 | AC106: 0.959 | AD106: 1.516 | AE106: 1.439 | AF106: 0.716 | AG106: 0.573 | AH106: 0.784 | AI106: 1.54 | AJ106: 1.04 | AK106: 0.753 | AL106: 1.347 | AM106: 0.682 | AN106: 1.39 | AO106: 0.872 | AP106: 0.716 | AQ106: 0.59 | AR106: 2.157 | AS106: 2.452 | AT106: 1.502 | AU106: 0.976 | AV106: 1.436 | AW106: 0.454 | AX106: 1.029 | AY106: 0.667
B107: 1.231 | C107: 0.454 | D107: 0.7 | E107: 1.29 | F107: 0.938 | G107: 0.795 | H107: 0.757 | I107: 2.776 | J107: 1.115 | K107: 0.338 | L107: 0.851 | M107: 0.88 | N107: 1.565 | O107: 0.543 | P107: 0.501 | Q107: 0.729 | R107: 1.495 | S107: 0.883 | T107: 2.066 | U107: 1.462 | V107: 1.067 | W107: 1.937 | X107: 1.069 | Y107: 1.102 | Z107: 2.243 | AA107: 0.753 | AB107: 1.511 | AC107: 1.274 | AD107: 2.076 | AE107: 1.071 | AF107: 0.976 | AG107: 1.08 | AH107: 0.94594 | AI107: 1.24 | AJ107: 1.178 | AK107: 0.677 | AL107: 0.978 | AM107: 0.863 | AN107: 0.639 | AO107: 2.271 | AP107: 0.879 | AQ107: 1.436 | AR107: 1.061 | AS107: 0.496 | AT107: 0.466 | AU107: 1.904 | AV107: 1.044 | AW107: 2.878 | AX107: 1.1827 | AY107: 1.136

Sheet MediasAmostra10
A1: Média | B1: Desvio Padrão | C1: Variância | D1: Intervalo | F1: Não contém | G1: =SUM(F2:F51)/50 -> 0.14
A2: 1.1136 | B2: 0.4385947763 | C2: 0.1923653778 | D2: =A2-2*(B2/SQRT(10)) -> 0.8362083074 | E2: =A2+2*(B2/SQRT(10)) -> 1.390991693 | F2: =IF(AND(DadosVento!$H$1>D2,DadosVento!$H$1<E2),"",1) -> 
A3: 1.0705 | B3: 0.4214937063 | C3: 0.1776569444 | D3: =A3-2*(B3/SQRT(10)) -> 0.8039239737 | E3: =A3+2*(B3/SQRT(10)) -> 1.337076026 | F3: =IF(AND(DadosVento!$H$1>D3,DadosVento!$H$1<E3),"",1) -> 
A4: 1.1943 | B4: 0.7406356204 | C4: 0.5485411222 | D4: 0.7258809046 | E4: 1.662719095 | F4: =IF(AND(DadosVento!$H$1>D4,DadosVento!$H$1<E4),"",1) -> 
A5: 1.0968 | B5: 0.7643684103 | C5: 0.5842590667 | D5: 0.6133709704 | E5: 1.58022903 | F5: =IF(AND(DadosVento!$H$1>D5,DadosVento!$H$1<E5),"",1) -> 
A6: 0.9403 | B6: 0.3562471208 | C6: 0.1269120111 | D6: 0.7149895376 | E6: 1.165610462 | F6: =IF(AND(DadosVento!$H$1>D6,DadosVento!$H$1<E6),"",1) -> 1
A7: 1.0554 | B7: 0.5906044361 | C7: 0.3488136 | D7: 0.6818689571 | E7: 1.428931043 | F7: =IF(AND(DadosVento!$H$1>D7,DadosVento!$H$1<E7),"",1) -> 
A8: 0.9402 | B8: 0.3422259812 | C8: 0.1171186222 | D8: 0.723757285 | E8: 1.156642715 | F8: =IF(AND(DadosVento!$H$1>D8,DadosVento!$H$1<E8),"",1) -> 1
A9: 0.9792 | B9: 0.3399701948 | C9: 0.1155797333 | D9: 0.7641839696 | E9: 1.19421603 | F9: =IF(AND(DadosVento!$H$1>D9,DadosVento!$H$1<E9),"",1) -> 1
A10: 1.0211 | B10: 0.1996460479 | C10: 0.03985854444 | D10: 0.8948327526 | E10: 1.147367247 | F10: =IF(AND(DadosVento!$H$1>D10,DadosVento!$H$1<E10),"",1) -> 1
A11: 1.0489 | B11: 0.3090769232 | C11: 0.09552854444 | D11: 0.8534225901 | E11: 1.24437741 | F11: =IF(AND(DadosVento!$H$1>D11,DadosVento!$H$1<E11),"",1) -> 
A12: 1.0974 | B12: 0.6056429458 | C12: 0.3668033778 | D12: 0.7143577685 | E12: 1.480442231 | F12: =IF(AND(DadosVento!$H$1>D12,DadosVento!$H$1<E12),"",1) -> 
A13: 1.057 | B13: 0.39338446 | C13: 0.1547513333 | D13: 0.8082018221 | E13: 1.305798178 | F13: =IF(AND(DadosVento!$H$1>D13,DadosVento!$H$1<E13),"",1) -> 
A14: 1.33145 | B14: 0.5576515743 | C14: 0.3109752783 | D14: 0.9787601769 | E14: 1.684139823 | F14: =IF(AND(DadosVento!$H$1>D14,DadosVento!$H$1<E14),"",1) -> 
A15: 1.1773 | B15: 0.8609168304 | C15: 0.7411777889 | D15: 0.632808388 | E15: 1.721791612 | F15: =IF(AND(DadosVento!$H$1>D15,DadosVento!$H$1<E15),"",1) -> 
A16: 1.3709 | B16: 0.8295498712 | C16: 0.6881529889 | D16: 0.8462465948 | E16: 1.895553405 | F16: =IF(AND(DadosVento!$H$1>D16,DadosVento!$H$1<E16),"",1) -> 
A17: 1.0119 | B17: 0.4963561557 | C17: 0.2463694333 | D17: 0.6979768034 | E17: 1.325823197 | F17: =IF(AND(DadosVento!$H$1>D17,DadosVento!$H$1<E17),"",1) -> 
A18: 1.1216 | B18: 0.5044484777 | C18: 0.2544682667 | D18: 0.8025587696 | E18: 1.44064123 | F18: =IF(AND(DadosVento!$H$1>D18,DadosVento!$H$1<E18),"",1) -> 
A19: 1.4873 | B19: 0.7134295963 | C19: 0.5089817889 | D19: 1.036087505 | E19: 1.938512495 | F19: =IF(AND(DadosVento!$H$1>D19,DadosVento!$H$1<E19),"",1) -> 
A20: 1.10323 | B20: 0.2895322974 | C20: 0.08382895122 | D20: 0.9201136968 | E20: 1.286346303 | F20: =IF(AND(DadosVento!$H$1>D20,DadosVento!$H$1<E20),"",1) -> 
A21: 0.89472 | B21: 0.3876341139 | C21: 0.1502602062 | D21: 0.6495586603 | E21: 1.13988134 | F21: =IF(AND(DadosVento!$H$1>D21,DadosVento!$H$1<E21),"",1) -> 1
A22: 1.2227 | B22: 0.4325796137 | C22: 0.1871251222 | D22: 0.9491126302 | E22: 1.49628737 | F22: =IF(AND(DadosVento!$H$1>D22,DadosVento!$H$1<E22),"",1) -> 
A23: 1.3273 | B23: 0.6549349501 | C23: 0.4289397889 | D23: 0.9130827677 | E23: 1.741517232 | F23: =IF(AND(DadosVento!$H$1>D23,DadosVento!$H$1<E23),"",1) -> 
A24: 0.9795 | B24: 0.2601526261 | C24: 0.06767938889 | D24: 0.8149650324 | E24: 1.144034968 | F24: =IF(AND(DadosVento!$H$1>D24,DadosVento!$H$1<E24),"",1) -> 1
A25: 1.2278 | B25: 0.7451928609 | C25: 0.5553124 | D25: 0.7564986527 | E25: 1.699101347 | F25: =IF(AND(DadosVento!$H$1>D25,DadosVento!$H$1<E25),"",1) -> 
A26: 1.0096 | B26: 0.3707128868 | C26: 0.1374280444 | D26: 0.7751405839 | E26: 1.244059416 | F26: =IF(AND(DadosVento!$H$1>D26,DadosVento!$H$1<E26),"",1) -> 
A27: 1.2447 | B27: 0.6662296985 | C27: 0.4438620111 | D27: 0.8233393416 | E27: 1.666060658 | F27: =IF(AND(DadosVento!$H$1>D27,DadosVento!$H$1<E27),"",1) -> 
A28: 1.19805 | B28: 0.6593822214 | C28: 0.4347849139 | D28: 0.7810200664 | E28: 1.615079934 | F28: =IF(AND(DadosVento!$H$1>D28,DadosVento!$H$1<E28),"",1) -> 
A29: 1.1913 | B29: 0.5732885738 | C29: 0.3286597889 | D29: 0.82872047 | E29: 1.55387953 | F29: =IF(AND(DadosVento!$H$1>D29,DadosVento!$H$1<E29),"",1) -> 
A30: 1.0991 | B30: 0.4808426516 | C30: 0.2312096556 | D30: 0.794988405 | E30: 1.403211595 | F30: =IF(AND(DadosVento!$H$1>D30,DadosVento!$H$1<E30),"",1) -> 
A31: 1.051048 | B31: 0.3012943314 | C31: 0.09077827415 | D31: 0.8604927333 | E31: 1.241603267 | F31: =IF(AND(DadosVento!$H$1>D31,DadosVento!$H$1<E31),"",1) -> 
A32: 1.2631 | B32: 0.6156751398 | C32: 0.3790558778 | D32: 0.8737128519 | E32: 1.652487148 | F32: =IF(AND(DadosVento!$H$1>D32,DadosVento!$H$1<E32),"",1) -> 
A33: 1.2424 | B33: 0.563020268 | C33: 0.3169918222 | D33: 0.8863147168 | E33: 1.598485283 | F33: =IF(AND(DadosVento!$H$1>D33,DadosVento!$H$1<E33),"",1) -> 
A34: 1.049 | B34: 0.5609682106 | C34: 0.3146853333 | D34: 0.6942125519 | E34: 1.403787448 | F34: =IF(AND(DadosVento!$H$1>D34,DadosVento!$H$1<E34),"",1) -> 
A35: 0.9931 | B35: 0.3876738176 | C35: 0.1502909889 | D35: 0.7479135494 | E35: 1.238286451 | F35: =IF(AND(DadosVento!$H$1>D35,DadosVento!$H$1<E35),"",1) -> 
A36: 0.9376 | B36: 0.313664435 | C36: 0.09838537778 | D36: 0.7392211929 | E36: 1.135978807 | F36: =IF(AND(DadosVento!$H$1>D36,DadosVento!$H$1<E36),"",1) -> 1
A37: 1.4079 | B37: 0.625104338 | C37: 0.3907554333 | D37: 1.012549303 | E37: 1.803250697 | F37: =IF(AND(DadosVento!$H$1>D37,DadosVento!$H$1<E37),"",1) -> 
A38: 1.1854 | B38: 0.5439117984 | C38: 0.2958400444 | D38: 0.8413999742 | E38: 1.529400026 | F38: =IF(AND(DadosVento!$H$1>D38,DadosVento!$H$1<E38),"",1) -> 
A39: 1.0811 | B39: 0.4249662601 | C39: 0.1805963222 | D39: 0.8123277379 | E39: 1.349872262 | F39: =IF(AND(DadosVento!$H$1>D39,DadosVento!$H$1<E39),"",1) -> 
A40: 1.0867 | B40: 0.7467885392 | C40: 0.5576931222 | D40: 0.6143894571 | E40: 1.559010543 | F40: =IF(AND(DadosVento!$H$1>D40,DadosVento!$H$1<E40),"",1) -> 
A41: 1.351 | B41: 0.8125940629 | C41: 0.6603091111 | D41: 0.8370703896 | E41: 1.86492961 | F41: =IF(AND(DadosVento!$H$1>D41,DadosVento!$H$1<E41),"",1) -> 
A42: 1.2172 | B42: 0.4447852915 | C42: 0.1978339556 | D42: 0.9358930818 | E42: 1.498506918 | F42: =IF(AND(DadosVento!$H$1>D42,DadosVento!$H$1<E42),"",1) -> 
A43: 1.4555 | B43: 0.6049207937 | C43: 0.3659291667 | D43: 1.072914498 | E43: 1.838085502 | F43: =IF(AND(DadosVento!$H$1>D43,DadosVento!$H$1<E43),"",1) -> 
A44: 1.0097 | B44: 0.4059857825 | C44: 0.1648244556 | D44: 0.752932046 | E44: 1.266467954 | F44: =IF(AND(DadosVento!$H$1>D44,DadosVento!$H$1<E44),"",1) -> 
A45: 1.3669 | B45: 0.7140887667 | C45: 0.5099227667 | D45: 0.9152706092 | E45: 1.818529391 | F45: =IF(AND(DadosVento!$H$1>D45,DadosVento!$H$1<E45),"",1) -> 
A46: 1.0254 | B46: 0.3989612067 | C46: 0.1591700444 | D46: 0.7730747778 | E46: 1.277725222 | F46: =IF(AND(DadosVento!$H$1>D46,DadosVento!$H$1<E46),"",1) -> 
A47: 1.236673 | B47: 0.3201951599 | C47: 0.1025249404 | D47: 1.0341638 | E47: 1.4391822 | F47: =IF(AND(DadosVento!$H$1>D47,DadosVento!$H$1<E47),"",1) -> 
A48: 1.3024 | B48: 0.7217797756 | C48: 0.5209660444 | D48: 0.845906388 | E48: 1.758893612 | F48: =IF(AND(DadosVento!$H$1>D48,DadosVento!$H$1<E48),"",1) -> 
A49: 1.21939 | B49: 0.8138832628 | C49: 0.6624059654 | D49: 0.704645028 | E49: 1.734134972 | F49: =IF(AND(DadosVento!$H$1>D49,DadosVento!$H$1<E49),"",1) -> 
A50: 1.2731 | B50: 0.8297002739 | C50: 0.6884025444 | D50: 0.7483514719 | E50: 1.797848528 | F50: =IF(AND(DadosVento!$H$1>D50,DadosVento!$H$1<E50),"",1) -> 
A51: 1.2483 | B51: 0.7311724299 | C51: 0.5346131222 | D51: 0.7858659518 | E51: 1.710734048 | F51: =IF(AND(DadosVento!$H$1>D51,DadosVento!$H$1<E51),"",1) -> 

Sheet MediasAmostra100
A1: Média | B1: Desvio Padrão | C1: Variância | D1: Intervalo | F1: Não contém | G1: =SUM(F2:F51)/50 -> 0.06
A2: 1.1408139 | B2: 0.5706286313 | C2: 0.3256170349 | D2: =A2-2*(B2/SQRT(100)) -> 1.026688174 | E2: =A2+2*(B2/SQRT(100)) -> 1.254939626 | F2: =IF(AND(DadosVento!$H$1>D2,DadosVento!$H$1<E2),"",1) -> 
A3: 1.147362 | B3: 0.6133091686 | C3: 0.3761481363 | D3: =A3-2*(B3/SQRT(100)) -> 1.024700166 | E3: =A3+2*(B3/SQRT(100)) -> 1.270023834 | F3: =IF(AND(DadosVento!$H$1>D3,DadosVento!$H$1<E3),"",1) -> 
A4: 1.177847 | B4: 0.5643243561 | C4: 0.3184619789 | D4: 1.064982129 | E4: 1.290711871 | F4: =IF(AND(DadosVento!$H$1>D4,DadosVento!$H$1<E4),"",1) -> 
A5: 1.090653 | B5: 0.4585070504 | C5: 0.2102287152 | D5: 0.9989515899 | E5: 1.18235441 | F5: =IF(AND(DadosVento!$H$1>D5,DadosVento!$H$1<E5),"",1) -> 1
A6: 1.233851 | B6: 0.5948140223 | C6: 0.3538037211 | D6: 1.114888196 | E6: 1.352813804 | F6: =IF(AND(DadosVento!$H$1>D6,DadosVento!$H$1<E6),"",1) -> 
A7: 1.1642034 | B7: 0.6453250762 | C7: 0.4164444539 | D7: 1.035138385 | E7: 1.293268415 | F7: =IF(AND(DadosVento!$H$1>D7,DadosVento!$H$1<E7),"",1) -> 
A8: 1.19845 | B8: 0.5872469302 | C8: 0.3448589571 | D8: 1.081000614 | E8: 1.315899386 | F8: =IF(AND(DadosVento!$H$1>D8,DadosVento!$H$1<E8),"",1) -> 
A9: 1.14306 | B9: 0.5881454129 | C9: 0.3459150267 | D9: 1.025430917 | E9: 1.260689083 | F9: =IF(AND(DadosVento!$H$1>D9,DadosVento!$H$1<E9),"",1) -> 
A10: 1.1930676 | B10: 0.6003631974 | C10: 0.3604359688 | D10: 1.072994961 | E10: 1.313140239 | F10: =IF(AND(DadosVento!$H$1>D10,DadosVento!$H$1<E10),"",1) -> 
A11: 1.113184 | B11: 0.6232384445 | C11: 0.3884261587 | D11: 0.9885363111 | E11: 1.237831689 | F11: =IF(AND(DadosVento!$H$1>D11,DadosVento!$H$1<E11),"",1) -> 
A12: 1.142926 | B12: 0.7417163344 | C12: 0.5501431207 | D12: 0.9945827331 | E12: 1.291269267 | F12: =IF(AND(DadosVento!$H$1>D12,DadosVento!$H$1<E12),"",1) -> 
A13: 1.248733 | B13: 0.5862232326 | C13: 0.3436576784 | D13: 1.131488353 | E13: 1.365977647 | F13: =IF(AND(DadosVento!$H$1>D13,DadosVento!$H$1<E13),"",1) -> 
A14: 1.1876793 | B14: 0.547654778 | C14: 0.2999257558 | D14: 1.078148344 | E14: 1.297210256 | F14: =IF(AND(DadosVento!$H$1>D14,DadosVento!$H$1<E14),"",1) -> 
A15: 1.1865114 | B15: 0.601407543 | C15: 0.3616910328 | D15: 1.066229891 | E15: 1.306792909 | F15: =IF(AND(DadosVento!$H$1>D15,DadosVento!$H$1<E15),"",1) -> 
A16: 1.171633 | B16: 0.5935361793 | C16: 0.3522851962 | D16: 1.052925764 | E16: 1.290340236 | F16: =IF(AND(DadosVento!$H$1>D16,DadosVento!$H$1<E16),"",1) -> 
A17: 1.232465 | B17: 0.6109586409 | C17: 0.3732704609 | D17: 1.110273272 | E17: 1.354656728 | F17: =IF(AND(DadosVento!$H$1>D17,DadosVento!$H$1<E17),"",1) -> 
A18: 1.237735 | B18: 0.6394143765 | C18: 0.4088507449 | D18: 1.109852125 | E18: 1.365617875 | F18: =IF(AND(DadosVento!$H$1>D18,DadosVento!$H$1<E18),"",1) -> 
A19: 1.2373575 | B19: 0.6949946027 | C19: 0.4830174978 | D19: 1.098358579 | E19: 1.376356421 | F19: =IF(AND(DadosVento!$H$1>D19,DadosVento!$H$1<E19),"",1) -> 
A20: 1.20757 | B20: 0.6928929437 | C20: 0.4801006314 | D20: 1.068991411 | E20: 1.346148589 | F20: =IF(AND(DadosVento!$H$1>D20,DadosVento!$H$1<E20),"",1) -> 
A21: 1.207905 | B21: 0.5440873588 | C21: 0.296031054 | D21: 1.099087528 | E21: 1.316722472 | F21: =IF(AND(DadosVento!$H$1>D21,DadosVento!$H$1<E21),"",1) -> 
A22: 1.230086 | B22: 0.5995989301 | C22: 0.359518877 | D22: 1.110166214 | E22: 1.350005786 | F22: =IF(AND(DadosVento!$H$1>D22,DadosVento!$H$1<E22),"",1) -> 
A23: 1.2588552 | B23: 0.7280003865 | C23: 0.5299845628 | D23: 1.113255123 | E23: 1.404455277 | F23: =IF(AND(DadosVento!$H$1>D23,DadosVento!$H$1<E23),"",1) -> 
A24: 1.141999 | B24: 0.5985702074 | C24: 0.3582862932 | D24: 1.022284959 | E24: 1.261713041 | F24: =IF(AND(DadosVento!$H$1>D24,DadosVento!$H$1<E24),"",1) -> 
A25: 1.1058313 | B25: 0.5472772532 | C25: 0.2995123918 | D25: 0.9963758494 | E25: 1.215286751 | F25: =IF(AND(DadosVento!$H$1>D25,DadosVento!$H$1<E25),"",1) -> 
A26: 1.2654714 | B26: 0.6543209983 | C26: 0.4281359688 | D26: 1.1346072 | E26: 1.3963356 | F26: =IF(AND(DadosVento!$H$1>D26,DadosVento!$H$1<E26),"",1) -> 
A27: 1.218835 | B27: 0.6323327423 | C27: 0.399844697 | D27: 1.092368452 | E27: 1.345301548 | F27: =IF(AND(DadosVento!$H$1>D27,DadosVento!$H$1<E27),"",1) -> 
A28: 1.199008 | B28: 0.5530171849 | C28: 0.3058280068 | D28: 1.088404563 | E28: 1.309611437 | F28: =IF(AND(DadosVento!$H$1>D28,DadosVento!$H$1<E28),"",1) -> 
A29: 1.082974 | B29: 0.5586750989 | C29: 0.3121178662 | D29: 0.9712389802 | E29: 1.19470902 | F29: =IF(AND(DadosVento!$H$1>D29,DadosVento!$H$1<E29),"",1) -> 1
A30: 1.2555267 | B30: 0.5801252802 | C30: 0.3365453408 | D30: 1.139501644 | E30: 1.371551756 | F30: =IF(AND(DadosVento!$H$1>D30,DadosVento!$H$1<E30),"",1) -> 
A31: 1.215809 | B31: 0.6702059412 | C31: 0.4491760037 | D31: 1.081767812 | E31: 1.349850188 | F31: =IF(AND(DadosVento!$H$1>D31,DadosVento!$H$1<E31),"",1) -> 
A32: 1.193105 | B32: 0.5753903696 | C32: 0.3310740774 | D32: 1.078026926 | E32: 1.308183074 | F32: =IF(AND(DadosVento!$H$1>D32,DadosVento!$H$1<E32),"",1) -> 
A33: 1.25838 | B33: 0.599671866 | C33: 0.3596063469 | D33: 1.138445627 | E33: 1.378314373 | F33: =IF(AND(DadosVento!$H$1>D33,DadosVento!$H$1<E33),"",1) -> 
A34: 1.2252294 | B34: 0.6824871866 | C34: 0.4657887598 | D34: 1.088731963 | E34: 1.361726837 | F34: =IF(AND(DadosVento!$H$1>D34,DadosVento!$H$1<E34),"",1) -> 
A35: 1.278463 | B35: 0.8527595728 | C35: 0.727198889 | D35: 1.107911085 | E35: 1.449014915 | F35: =IF(AND(DadosVento!$H$1>D35,DadosVento!$H$1<E35),"",1) -> 
A36: 1.1144386 | B36: 0.4839739019 | C36: 0.2342307378 | D36: 1.01764382 | E36: 1.21123338 | F36: =IF(AND(DadosVento!$H$1>D36,DadosVento!$H$1<E36),"",1) -> 
A37: 1.1038218 | B37: 0.5549974323 | C37: 0.3080221498 | D37: 0.9928223135 | E37: 1.214821286 | F37: =IF(AND(DadosVento!$H$1>D37,DadosVento!$H$1<E37),"",1) -> 
A38: 1.297799 | B38: 0.6444522257 | C38: 0.4153186712 | D38: 1.168908555 | E38: 1.426689445 | F38: =IF(AND(DadosVento!$H$1>D38,DadosVento!$H$1<E38),"",1) -> 
A39: 1.1929583 | B39: 0.5804875862 | C39: 0.3369658377 | D39: 1.076860783 | E39: 1.309055817 | F39: =IF(AND(DadosVento!$H$1>D39,DadosVento!$H$1<E39),"",1) -> 
A40: 1.109793 | B40: 0.4873304875 | C40: 0.2374910041 | D40: 1.012326902 | E40: 1.207259098 | F40: =IF(AND(DadosVento!$H$1>D40,DadosVento!$H$1<E40),"",1) -> 
A41: 1.1100372 | B41: 0.5961422681 | C41: 0.3553856038 | D41: 0.9908087464 | E41: 1.229265654 | F41: =IF(AND(DadosVento!$H$1>D41,DadosVento!$H$1<E41),"",1) -> 
A42: 1.24774 | B42: 0.654082882 | C42: 0.4278244166 | D42: 1.116923424 | E42: 1.378556576 | F42: =IF(AND(DadosVento!$H$1>D42,DadosVento!$H$1<E42),"",1) -> 
A43: 1.375349 | B43: 0.8263049723 | C43: 0.6827799072 | D43: 1.210088006 | E43: 1.540609994 | F43: =IF(AND(DadosVento!$H$1>D43,DadosVento!$H$1<E43),"",1) -> 1
A44: 1.2219927 | B44: 0.6598544028 | C44: 0.4354078329 | D44: 1.090021819 | E44: 1.353963581 | F44: =IF(AND(DadosVento!$H$1>D44,DadosVento!$H$1<E44),"",1) -> 
A45: 1.1807833 | B45: 0.5749382302 | C45: 0.3305539685 | D45: 1.065795654 | E45: 1.295770946 | F45: =IF(AND(DadosVento!$H$1>D45,DadosVento!$H$1<E45),"",1) -> 
A46: 1.223597 | B46: 0.6849565027 | C46: 0.4691654106 | D46: 1.086605699 | E46: 1.360588301 | F46: =IF(AND(DadosVento!$H$1>D46,DadosVento!$H$1<E46),"",1) -> 
A47: 1.194131 | B47: 0.5806267298 | C47: 0.3371273993 | D47: 1.078005654 | E47: 1.310256346 | F47: =IF(AND(DadosVento!$H$1>D47,DadosVento!$H$1<E47),"",1) -> 
A48: 1.129845 | B48: 0.5877635308 | C48: 0.3454659682 | D48: 1.012292294 | E48: 1.247397706 | F48: =IF(AND(DadosVento!$H$1>D48,DadosVento!$H$1<E48),"",1) -> 
A49: 1.212157 | B49: 0.7048882552 | C49: 0.4968674524 | D49: 1.071179349 | E49: 1.353134651 | F49: =IF(AND(DadosVento!$H$1>D49,DadosVento!$H$1<E49),"",1) -> 
A50: 1.242164 | B50: 0.591132192 | C50: 0.3494372684 | D50: 1.123937562 | E50: 1.360390438 | F50: =IF(AND(DadosVento!$H$1>D50,DadosVento!$H$1<E50),"",1) -> 
A51: 1.2025962 | B51: 0.5917718369 | C51: 0.3501939069 | D51: 1.084241833 | E51: 1.320950567 | F51: =IF(AND(DadosVento!$H$1>D51,DadosVento!$H$1<E51),"",1) -> 
